{"text_format":"1","workbook":"xlsx","n_sheets":7,"sheets":["Settings","Base","Monster","a1","A1F","a2","A2F"],"not_rendered":{"charts":0,"images":16,"macros":1,"external_links":0,"defined_names":85,"comments":0,"pivot_tables":0},"unopened":[],"bounds":{"document_bytes":16777216,"sheet_cells":100000,"rows_first":2000,"rows_last":500,"rows_between":2000,"halvings":0,"cell_chars":16384,"cell_head_chars":4096},"cells_cut":0,"cells_raw":0,"read":"whole","date_system":"1900"}

{"sheet":"Settings","index":0,"n_rows":150,"n_cols":7,"rows_kept":150,"cut":false,"hidden":false,"merged":[[149,1,149,6],[140,1,140,2],[146,1,146,6],[130,1,130,2],[103,1,103,2],[98,1,98,2],[111,1,111,2],[115,1,115,2],[119,1,119,2],[123,1,123,2]]}
[]
[null,"レイヤー"]
[null,"ID","名称"]
[null,"Map","マップのみ"]
[null,"Treasure","宝箱・採集ポイント"]
[null,"Foe","Ｆ．Ｏ．Ｅ"]
[null,"Quest","クエスト・ミッション"]
[null,"Gimmick","ギミック"]
[null,"Event","イベント等"]
[]
[]
[]
[]
[]
[null,"アイコン"]
[null,"ID","名称","記号","罫線で囲む","常に表示","SVG"]
[null,"door","扉","扉",1,1,"<path d=\"M0.5,16.5 l5,0 l0,-12 l6,0 l0,12 l5,0 l0,-16 l-16,0 l0,16\" stroke=\"none\" fill=\"#9cefe7\" />\n<line x1=\"6\" y1=\"4.5\" x2=\"11\" y2=\"4.5\" stroke=\"#0b270e\" stroke-width=\"1\" />\n<rect x=\"3.5\" y=\"3.5\" width=\"3\" height=\"12.5\" stroke=\"none\" fill=\"#005a51\" />\n<rect x=\"10.5\" y=\"3.5\" width=\"3\" height=\"12.5\" stroke=\"none\" fill=\"#005a51\" />\n<path d=\"M3.5,16.5 l0,-13 l10,0 l0,13\" stroke=\"#3a948b\" stroke-width=\"1\" fill=\"none\" />\n<path d=\"M5.5,16.5 l-5,0 l0,-16 l16,0 l0,16 l-5,0\" stroke=\"#0b270e\" stroke-width=\"1\" fill=\"none\" />"]
[null,"up","上り階段","上",1,1,"<rect x=\"0.5\" y=\"0.5\" width=\"6\" height=\"10\" stroke=\"none\" fill=\"#9cefe7\" />\n<rect x=\"5.5\" y=\"2.5\" width=\"6\" height=\"10\" stroke=\"none\" fill=\"#9cefe7\" />\n<rect x=\"10.5\" y=\"4.5\" width=\"6\" height=\"10\" stroke=\"none\" fill=\"#9cefe7\" />\n<path d=\"M0.5,10.5 l5,0 l0,2 l6,0 l0,2 l5,0 l-12,0 l0,-2 l-4,0 l0,-2\" stroke=\"#052812\" stroke-width=\"1\" fill=\"#052812\" />\n<line x1=\"5.5\" y1=\"2.5\" x2=\"5.5\" y2=\"12.5\" stroke=\"#3c938a\" stroke-width=\"1\" />\n<line x1=\"11.5\" y1=\"4.5\" x2=\"11.5\" y2=\"14.5\" stroke=\"#3c938a\" stroke-width=\"1\" />\n<path d=\"M5.5,0.5 l0,2 l6,0 l0,2 l5,0\" stroke=\"#052812\" stroke-width=\"1\" fill=\"none\" />"]
[null,"down","下り階段","下",1,1,"<path d=\"M2.5,2.5 l0,6 l3,0 l0,-4 l4,0 l0,-2 l-7,0\" stroke=\"#002b37\" stroke-width=\"1\" fill=\"none\" />\n<rect x=\"2.5\" y=\"9.5\" width=\"4\" height=\"5\" stroke=\"#3d938a\" stroke-width=\"1\" fill=\"#9cefe7\" />\n<rect x=\"6.5\" y=\"5.5\" width=\"4\" height=\"9\" stroke=\"#3d938a\" stroke-width=\"1\" fill=\"#9cefe7\" />\n<rect x=\"10.5\" y=\"2.5\" width=\"4\" height=\"12\" stroke=\"#3d938a\" stroke-width=\"1\" fill=\"#9cefe7\" />\n<rect x=\"2.5\" y=\"2.5\" width=\"12\" height=\"12\" stroke=\"#042a1d\" stroke-width=\"1\" fill=\"none\" />"]
[null,"close","閉じた扉","閉",1,1,"<rect x=\"0.5\" y=\"0.5\" width=\"16\" height=\"16\" fill=\"#99efe6\" />\n<rect x=\"3.5\" y=\"4.5\" width=\"4\" height=\"12\" stroke=\"#39938a\" stroke-width=\"1\" fill=\"#99efe6\" />\n<rect x=\"9.5\" y=\"4.5\" width=\"4\" height=\"12\" stroke=\"#39938a\" stroke-width=\"1\" fill=\"#99efe6\" />\n<line x1=\"8.5\" y1=\"4\" x2=\"8.5\" y2=\"16\" stroke=\"#00322a\" stroke-width=\"1\" />\n<path d=\"M3.5,16.5 l0,-13 l10,0 l0,13\" stroke=\"#005a51\" stroke-width=\"1\" fill=\"none\" />\n<rect x=\"0.5\" y=\"0.5\" width=\"16\" height=\"16\" stroke=\"#082811\" stroke-width=\"1\" fill=\"none\" />"]
[null,"note","メモ","書",0,0,"<path d=\"M1,1 l0,7 l7,-7 l-7,0\" fill=\"#ff1a31\" />"]
[null,"treasure","宝箱","宝",1,1,"<linearGradient id=\"treasure-g1\" x1=\"0\" y1=\"0\" x2=\"0\" y2=\"100%\">\n    <stop offset=\"0.0\" stop-color=\"#5a2400\"/>\n    <stop offset=\"1.0\" stop-color=\"#eb8e3e\"/>\n</linearGradient>\n<path d=\"M0.5,5 l2,2 l-2,2 l16,0 l-2,-2 l2,-2 l-16,0\" fill=\"#3f1c0c\" />\n<path d=\"M0.5,5 q0,-3 3,-5 l10,0 q3,2 3,5 l-16,0\" stroke=\"#3f1c0c\" stroke-width=\"1\" fill=\"url(#treasure-g1)\" />\n<rect x=\"1.5\" y=\"4\" width=\"14\" height=\"1\" fill=\"#e6d780\" />\n<rect x=\"6.5\" y=\"3\" width=\"4\" height=\"2\" stroke=\"#e6d780\" fill=\"#3f1c0c\" />\n<rect x=\"0.5\" y=\"9\" rx=\"1\" ry=\"1\" width=\"16\" height=\"7\" stroke=\"#3f1c0c\" stroke-width=\"1\" fill=\"#e6d780\" />\n<rect x=\"1.5\" y=\"10\" width=\"5\" height=\"5\" stroke=\"#e6d780\" stroke-width=\"1\" fill=\"#3f1c0c\" />\n<rect x=\"6.5\" y=\"10\" width=\"6\" height=\"5\" stroke=\"#e6d780\" stroke-width=\"1\" fill=\"#3f1c0c\" />\n<rect x=\"10.5\" y=\"10\" width=\"5\" height=\"5\" stroke=\"#e6d780\" stroke-width=\"1\" fill=\"#3f1c0c\" />\n<rect x=\"7.5\" y=\"11\" width=\"2\" height=\"2\" stroke=\"none\" fill=\"#e6d780\" />"]
[null,"exclamation","感嘆符","！",0,0,"<rect x=\"1.5\" y=\"1.5\" rx=\"2\" ry=\"2\" width=\"14\" height=\"14\" stroke=\"#251b00\" stroke-width=\"1\" fill=\"#fcffa1\" />\n<text x=\"2.5\" y=\"13\" font-size=\"12\" stroke=\"#075045\" stroke-width=\"1\" fill=\"#075045\">！</text>"]
[null,"question","疑問符","？",0,0,"<rect x=\"1.5\" y=\"1.5\" rx=\"2\" ry=\"2\" width=\"14\" height=\"14\" stroke=\"#251b00\" stroke-width=\"1\" fill=\"#fcffa1\" />\n<text x=\"2.5\" y=\"13\" font-size=\"12\" stroke=\"#075045\" stroke-width=\"1\" fill=\"#075045\">？</text>"]
[null,"foe-up","F.O.E(上)","Fu",0,0,"<radialGradient id=\"foe-up-g1\" gradientUnits=\"userSpaceOnUse\" cx=\"6\" cy=\"6\" fx=\"6\" fy=\"6\" r=\"7.5\">\n    <stop offset=\"0%\" stop-color=\"#f8f0f8\"/>\n    <stop offset=\"50%\" stop-color=\"#a878f8\"/>\n</radialGradient>\n<circle cx=\"8.5\" cy=\"8.5\" r=\"7.5\" stroke=\"#281898\" stroke-width=\"1\" fill=\"url(#foe-up-g1)\" />\n<path d=\"M8.5,3.5 l-5,8 l10,0\" fill=\"#281898\" />"]
[null,"foe-down","F.O.E(下)","Fd",0,0,"<radialGradient id=\"foe-down-g1\" gradientUnits=\"userSpaceOnUse\" cx=\"10\" cy=\"10\" fx=\"10\" fy=\"10\" r=\"7.5\">\n    <stop offset=\"0%\" stop-color=\"#f8f0f8\"/>\n    <stop offset=\"50%\" stop-color=\"#a878f8\"/>\n</radialGradient>\n<circle cx=\"8.5\" cy=\"8.5\" r=\"7.5\" stroke=\"#281898\" stroke-width=\"1\" fill=\"url(#foe-down-g1)\" />\n<path d=\"M8.5,13.5 l5,-8 l-10,0\" fill=\"#281898\" />"]
[null,"foe-left","F.O.E(左)","Fl",0,0,"<radialGradient id=\"foe-left-g1\" gradientUnits=\"userSpaceOnUse\" cx=\"6\" cy=\"10\" fx=\"6\" fy=\"10\" r=\"7.5\">\n    <stop offset=\"0%\" stop-color=\"#f8f0f8\"/>\n    <stop offset=\"50%\" stop-color=\"#a878f8\"/>\n</radialGradient>\n<circle cx=\"8.5\" cy=\"8.5\" r=\"7.5\" stroke=\"#281898\" stroke-width=\"1\" fill=\"url(#foe-left-g1)\" />\n<path d=\"M3.5,8.5 l8,5 l0,-10\" fill=\"#281898\" />"]
[null,"foe-right","F.O.E(右)","Fr",0,0,"<radialGradient id=\"foe-right-g1\" gradientUnits=\"userSpaceOnUse\" cx=\"10\" cy=\"6\" fx=\"10\" fy=\"6\" r=\"7.5\">\n    <stop offset=\"0%\" stop-color=\"#f8f0f8\"/>\n    <stop offset=\"50%\" stop-color=\"#a878f8\"/>\n</radialGradient>\n<circle cx=\"8.5\" cy=\"8.5\" r=\"7.5\" stroke=\"#281898\" stroke-width=\"1\" fill=\"url(#foe-right-g1)\" />\n<path d=\"M13.5,8.5 l-8,-5 l0,10\" fill=\"#281898\" />"]
[null,"hand","手","手",0,1,"<path d=\"M6.5,16 q-5,-3,-4,-6 l0,-4 a1,1,0,0,1,2.5,0 l0,4 l0,-7 a1,1,0,0,1,2.5,0 l0,5 l0,-5.5 a1,1,0,0,1,2.5,0 l0,5.5 l0,-5 a1,1,0,0,1,2.5,0 l0,5 l0,-3 a1,1,0,0,1,2,0 l0,6 q-1,4,-4,5 l-5,0\" stroke=\"#328ea3\" stroke-width=\"1\" fill=\"#feffef\" />"]
[null,"shears","ハサミ","伐",0,1,"<path d=\"M8.5,1 q-7,5,0,10 q7,-5,0,-10\" stroke=\"#328ea3\" stroke-width=\"1\" fill=\"#feffef\" />\n<path d=\"M8.5,10 q-5,0,-5,4 a2,2,0,0,0,2,2 l3,0 l0,-6 l0,6 l3,0 a2,2,0,0,0,2,-2 q0,-4,-5,-4\" stroke=\"#328ea3\" stroke-width=\"1\" fill=\"#feffef\" />\n<line x1=\"8.5\" y1=\"1\" x2=\"8.5\" y2=\"10\" stroke=\"#328ea3\" stroke-width=\"1\" />\n<circle cx=\"8.5\" cy=\"10\" r=\"1\" stroke=\"#328ea3\" stroke-width=\"1\" fill=\"#feffef\" />\n<circle cx=\"6\" cy=\"13\" r=\"0.5\" stroke=\"#328ea3\" stroke-width=\"1\" />\n<circle cx=\"11\" cy=\"13\" r=\"0.5\" stroke=\"#328ea3\" stroke-width=\"1\" />\n"]
[null,"mattock","つるはし","掘",0,1,"<path d=\"M3,5.5 q4,1,6,2 l-7,7 l1.5,1.5 l7,-7 q2,2,3,4 q0,-5,-1,-6 l2,-2 l-1.5,-1.5 l-2,2 q-3,-4,-8,0\" stroke=\"#328ea3\" stroke-width=\"1\" fill=\"#feffef\" />"]
[null,"fishing","釣竿","釣",0,1,"<path d=\"M1,14 l3,-3 a2.5,2.5 0 1 1 3,-3 l7,-7 l2,2 l-13,13 l-2,-2\" stroke=\"#328ea3\" stroke-width=\"1\" fill=\"#feffef\" />\n<path d=\"M14,7 c-11,9 2,4 -0,7 a1,1 0 0 0 0,2 c8,-9 -9,0,0,-7.5 a0.75,0.75 0 0 0 0,-1.5\" stroke=\"#328ea3\" stroke-width=\"0.5\" fill=\"#feffef\" />"]
[null,"event","イベント","Ｅ",0,0,"<rect x=\"1.5\" y=\"1.5\" rx=\"2\" ry=\"2\" width=\"14\" height=\"14\" stroke=\"#251b00\" stroke-width=\"1\" fill=\"#fcffa1\" />\n<text x=\"2.5\" y=\"13\" font-size=\"12\" fill=\"black\" stroke=\"#075045\" stroke-width=\"1\" fill=\"#075045\">Ｅ</text>"]
[null,"arrow-up","矢印(上)","↑",0,1,"<path d=\"M8.5,3.5 l-6,6 l4.5,0 l0,5 l3,0 l0,-5 l4.5,0 Z\" stroke=\"#1e5f4b\" stroke-width=\"1\" fill=\"#a4ffee\" />"]
[null,"arrow-down","矢印(下)","↓",0,1,"<path d=\"M8.5,14.5 l6,-6 l-4.5,0 l0,-5 l-3,0 l0,5 l-4.5,0 Z\" stroke=\"#1e5f4b\" stroke-width=\"1\" fill=\"#a4ffee\" />"]
[null,"arrow-up-down","矢印(上下)","↑↓",0,1,"<path d=\"M8.5,1.5 l-5,5 l3.5,0 l0,4 l-3.5,0 l5,5 l5,-5 l-3.5,0 l0,-4 l3.5,0 Z\" stroke=\"#1e5f4b\" stroke-width=\"1\" fill=\"#a4ffee\" />"]
[null,"arrow-left","矢印(左)","←",0,1,"<path d=\"M2.5,8.5 l6,6 l0,-4.5 l5,0 l0,-3 l-5,0 l0,-4.5 Z\" stroke=\"#1e5f4b\" stroke-width=\"1\" fill=\"#a4ffee\" />"]
[null,"arrow-right","矢印(右)","→",0,1,"<path d=\"M14.5,8.5 l-6,-6 l0,4.5 l-5,0 l0,3 l5,0 l0,4.5 Z\" stroke=\"#1e5f4b\" stroke-width=\"1\" fill=\"#a4ffee\" />"]
[null,"arrow-left-right","矢印(左右)","←→",0,1,"<path d=\"M1.5,8.5 l5,5 l0,-3.5 l4,0 l0,3.5 l5,-5 l-5,-5 l0,3.5 l-4,0 l0,-3.5 Z\" stroke=\"#1e5f4b\" stroke-width=\"1\" fill=\"#a4ffee\" />"]
[null,"harvest","収穫","穫",0,1,"<linearGradient id=\"harvest-g1\" x1=\"0\" y1=\"0\" x2=\"0\" y2=\"100%\">\n    <stop offset=\"0.0\" stop-color=\"#1588b4\" />\n    <stop offset=\"1.0\" stop-color=\"#84ccda\" />\n</linearGradient>\n<radialGradient id=\"harvest-g2\" gradientUnits=\"userSpaceOnUse\" cx=\"8.5\" cy=\"10\" fx=\"7.5\" fy=\"11\" r=\"8.5\">\n    <stop offset=\"0%\" stop-color=\"#e5fff1\" />\n    <stop offset=\"100%\" stop-color=\"#83ccdd\" />\n</radialGradient>\n<ellipse cx=\"8.5\" cy=\"14.5\" rx=\"8\" ry=\"2\" stroke=\"none\" fill=\"url(#harvest-g1)\" />\n<path d=\"M5.5,14.5 c-7,-9,7,-3,-2,-12 q2,0,4,2 q1,-1,0,-3 q2,1,2,3 q1,-1,4,-2 c-9,9,5,3,-2,12\" stroke=\"#0996d9\" stroke-width=\"1\" fill=\"url(#harvest-g2)\" />\n<line x1=\"9.5\" y1=\"11\" x2=\"11.5\" y2=\"11\" stroke=\"#70d2ed\" stroke-width=\"1\" />\n<line x1=\"8.5\" y1=\"13\" x2=\"10.5\" y2=\"13\" stroke=\"#70d2ed\" stroke-width=\"1\" />"]
[null,"bonfire","焚き火","火",0,1,"<radialGradient id=\"bonfire-g1\" gradientUnits=\"userSpaceOnUse\" cx=\"8.5\" cy=\"10\" fx=\"8.5\" fy=\"11\" r=\"7.5\">\n    <stop offset=\"0%\" stop-color=\"#ffd724\" />\n    <stop offset=\"10%\" stop-color=\"#ffd724\" />\n    <stop offset=\"35%\" stop-color=\"#f74800\" />\n    <stop offset=\"50%\" stop-color=\"#dc0e00\" />\n    <stop offset=\"90%\" stop-color=\"#811103\" />\n</radialGradient>\n<line x1=\"2\" y1=\"15\" x2=\"8\" y2=\"12.5\" stroke=\"#5e4e2c\" stroke-width=\"2\" />\n<line x1=\"9\" y1=\"15.5\" x2=\"8\" y2=\"12.5\" stroke=\"#5e4e2c\" stroke-width=\"2\" />\n<line x1=\"15\" y1=\"15\" x2=\"9\" y2=\"12.5\" stroke=\"#5e4e2c\" stroke-width=\"2\" />\n<path d=\"M8.5,13.5 q-9,0,-5,-10 q1,3,3,2 q-1,-4,2,-5 c1,4,6,3,4,8 q2,-1,2,-3 q1,8,-6,8\" fill=\"url(#bonfire-g1)\" />"]
[null,"stele","石碑","碑",0,0,"<linearGradient id=\"stele-g1\" x1=\"0\" y1=\"0\" x2=\"0\" y2=\"100%\">\n    <stop offset=\"0.0\" stop-color=\"#dfded9\" />\n    <stop offset=\"1.0\" stop-color=\"#a5a5a3\" />\n</linearGradient>\n<rect x=\"3.5\" y=\"0.5\" rx=\"3\" ry=\"3\" width=\"10\" height=\"16\" stroke=\"#64645a\" stroke-width=\"1\" fill=\"url(#stele-g1)\" />\n<rect x=\"5.5\" y=\"2.5\" rx=\"3\" ry=\"3\" width=\"6\" height=\"13\" stroke=\"#8b8b8d\" stroke-width=\"1\" fill=\"none\" />\n<path d=\"M1.5,16.5 l2.5,-2.5 l9,0 l2.5,2.5 l-13,0\" stroke=\"#7f7b70\" stroke-width=\"1\" fill=\"#a5a5a3\" />"]
[null,"board","看板","看",0,1,"<line x1=\"7.5\" y1=\"0.5\" x2=\"7.5\" y2=\"16.5\" stroke=\"#43250d\" stroke-width=\"1\" />\n<line x1=\"8.5\" y1=\"0.5\" x2=\"8.5\" y2=\"16.5\" stroke=\"#875d44\" stroke-width=\"1\" />\n<line x1=\"9.5\" y1=\"0.5\" x2=\"9.5\" y2=\"16.5\" stroke=\"#43250d\" stroke-width=\"1\" />\n<line x1=\"8.5\" y1=\"1.5\" x2=\"8.5\" y2=\"13.5\" stroke=\"#43250d\" stroke-width=\"1\" />\n<rect x=\"1\" y=\"2\" width=\"15\" height=\"10\" stroke=\"none\" fill=\"#846539\" />\n<line x1=\"1.5\" y1=\"7\" x2=\"16\" y2=\"7\" stroke=\"#43250d\" stroke-width=\"1\" />\n<path d=\"M1.5,3 l0,9 l14,0 l0,-9\" stroke=\"#43250d\" stroke-width=\"1\" fill=\"none\" />\n<rect x=\"4\" y=\"4\" width=\"9\" height=\"6\" stroke=\"none\" fill=\"#f0d2ae\" />\n<line x1=\"6\" y1=\"5.5\" x2=\"11.5\" y2=\"5.5\" stroke=\"#c3ad73\" stroke-width=\"1\" />\n<line x1=\"8\" y1=\"7.5\" x2=\"11.5\" y2=\"7.5\" stroke=\"#c3ad73\" stroke-width=\"1\" />\n<line x1=\"9\" y1=\"8.5\" x2=\"11.5\" y2=\"8.5\" stroke=\"#c3ad73\" stroke-width=\"1\" />\n"]
[null,"lever","レバー","操",1,1,"<radialGradient id=\"lever-g1\" gradientUnits=\"userSpaceOnUse\" cx=\"2\" cy=\"4\" fx=\"2\" fy=\"4\" r=\"2\">\n    <stop offset=\"0%\" stop-color=\"#ff664d\" />\n    <stop offset=\"100%\" stop-color=\"#bc1e15\" />\n</radialGradient>\n<radialGradient id=\"lever-g2\" gradientUnits=\"userSpaceOnUse\" cx=\"15\" cy=\"13\" fx=\"15\" fy=\"13\" r=\"15\">\n    <stop offset=\"0%\" stop-color=\"#6f7567\" />\n    <stop offset=\"100%\" stop-color=\"#bdbaa7\" />\n</radialGradient>\n<line x1=\"2.5\" y1=\"4.5\" x2=\"6.5\" y2=\"8.5\" stroke=\"#595c47\" stroke-width=\"3\" />\n<line x1=\"3\" y1=\"4\" x2=\"7\" y2=\"8\" stroke=\"#b5b6a5\" stroke-width=\"1\" />\n<path d=\"M1.5,15 a7,7,0,0,1,14,0 l-14,0\" stroke=\"#5e5c45\" stroke-width=\"1\" fill=\"url(#lever-g2)\" />\n<circle cx=\"2.5\" cy=\"4.5\" r=\"2\" stroke=\"#8e1700\" fill=\"url(#lever-g1)\" />"]
[null,"wall","壁","壁",0,1,"<linearGradient id=\"wall-g1\" x1=\"0\" y1=\"0\" x2=\"0\" y2=\"100%\">\n    <stop offset=\"50%\" stop-color=\"#c9df7a\" />\n    <stop offset=\"75%\" stop-color=\"#abc56c\" />\n</linearGradient>\n<linearGradient id=\"wall-g2\" x1=\"0\" y1=\"0\" x2=\"0\" y2=\"100%\">\n    <stop offset=\"25%\" stop-color=\"#c9df7a\" />\n    <stop offset=\"50%\" stop-color=\"#abc56c\" />\n</linearGradient>\n<rect x=\"1.5\" y=\"1.5\" width=\"4.5\" height=\"5\" stroke=\"#627b27\" stroke-width=\"1\" fill=\"url(#wall-g1)\" />\n<rect x=\"6\" y=\"1.5\" width=\"5\" height=\"5\" stroke=\"#627b27\" stroke-width=\"1\" fill=\"url(#wall-g1)\" />\n<rect x=\"11\" y=\"1.5\" width=\"4.5\" height=\"5\" stroke=\"#627b27\" stroke-width=\"1\" fill=\"url(#wall-g1)\" />\n<rect x=\"1.5\" y=\"6.5\" width=\"7\" height=\"4\" stroke=\"#627b27\" stroke-width=\"1\" fill=\"url(#wall-g1)\" />\n<rect x=\"8.5\" y=\"6.5\" width=\"7\" height=\"4\" stroke=\"#627b27\" stroke-width=\"1\" fill=\"url(#wall-g1)\" />\n<rect x=\"1.5\" y=\"10.5\" width=\"4.5\" height=\"5\" stroke=\"#627b27\" stroke-width=\"1\" fill=\"url(#wall-g2)\" />\n<rect x=\"6\" y=\"10.5\" width=\"5\" height=\"5\" stroke=\"#627b27\" stroke-width=\"1\" fill=\"url(#wall-g2)\" />\n<rect x=\"11\" y=\"10.5\" width=\"4.5\" height=\"5\" stroke=\"#627b27\" stroke-width=\"1\" fill=\"url(#wall-g2)\" />"]
[null,"circle","円","円",1,1,"<radialGradient id=\"circle-g1\" gradientUnits=\"userSpaceOnUse\" cx=\"8.5\" cy=\"8.5\" fx=\"8.5\" fy=\"8.5\" r=\"7.5\">\n    <stop offset=\"60%\" stop-color=\"rgba(173,174,169,0.0)\" />\n    <stop offset=\"80%\" stop-color=\"#adaea9\" />\n</radialGradient>\n<circle cx=\"8.5\" cy=\"8.5\" r=\"7.5\" stroke=\"#7f7c73\" stroke-width=\"1\" fill=\"url(#circle-g1)\" />"]
[null,"star","星","星",0,1,"<radialGradient id=\"star-g1\" gradientUnits=\"userSpaceOnUse\" cx=\"6.5\" cy=\"10.5\" fx=\"6.5\" fy=\"10.5\" r=\"11\">\n    <stop offset=\"0%\" stop-color=\"#7cffff\" />\n    <stop offset=\"100%\" stop-color=\"#36ab99\" />\n</radialGradient>\n<radialGradient id=\"star-g2\" gradientUnits=\"userSpaceOnUse\" cx=\"11.5\" cy=\"5.5\" fx=\"11.5\" fy=\"5.5\" r=\"10\">\n    <stop offset=\"0%\" stop-color=\"#7cffff\" />\n    <stop offset=\"100%\" stop-color=\"#36ab99\" />\n</radialGradient>\n<path d=\"M6.5,5 q0,4,-3.5,5.5 q3.5,1,3.5,5.5 q0,-4.5,3.5,-5.5 q-3.5,-1,-3.5,-5.5\" stroke=\"#218a8e\" stroke-width=\"1\" fill=\"url(#star-g1)\" />\n<path d=\"M11.5,0.5 q0,3.5,-3,5 q3,1,3,5 q0,-4,3,-5 q-3,-1,-3,-5\" stroke=\"#218a8e\" stroke-width=\"1\" fill=\"url(#star-g2)\" />"]
[null,"number-0","０","０",0,0,"<rect x=\"1.5\" y=\"1.5\" rx=\"2\" ry=\"2\" width=\"14\" height=\"14\" stroke=\"#134e2e\" stroke-width=\"1\" fill=\"#005250\" />\n<text x=\"2.5\" y=\"13\" font-size=\"12\" stroke=\"#e2fc8e\" stroke-width=\"1.5\" fill=\"#e2fc8e\">０</text>"]
[null,"number-1","１","１",0,0,"<rect x=\"1.5\" y=\"1.5\" rx=\"2\" ry=\"2\" width=\"14\" height=\"14\" stroke=\"#134e2e\" stroke-width=\"1\" fill=\"#005250\" />\n<text x=\"2.5\" y=\"13\" font-size=\"12\" stroke=\"#e2fc8e\" stroke-width=\"1.5\" fill=\"#e2fc8e\">１</text>"]
[null,"number-2","２","２",0,0,"<rect x=\"1.5\" y=\"1.5\" rx=\"2\" ry=\"2\" width=\"14\" height=\"14\" stroke=\"#134e2e\" stroke-width=\"1\" fill=\"#005250\" />\n<text x=\"2.5\" y=\"13\" font-size=\"12\" stroke=\"#e2fc8e\" stroke-width=\"1.5\" fill=\"#e2fc8e\">２</text>"]
[null,"number-3","３","３",0,0,"<rect x=\"1.5\" y=\"1.5\" rx=\"2\" ry=\"2\" width=\"14\" height=\"14\" stroke=\"#134e2e\" stroke-width=\"1\" fill=\"#005250\" />\n<text x=\"2.5\" y=\"13\" font-size=\"12\" stroke=\"#e2fc8e\" stroke-width=\"1.5\" fill=\"#e2fc8e\">３</text>"]
[null,"number-4","４","４",0,0,"<rect x=\"1.5\" y=\"1.5\" rx=\"2\" ry=\"2\" width=\"14\" height=\"14\" stroke=\"#134e2e\" stroke-width=\"1\" fill=\"#005250\" />\n<text x=\"2.5\" y=\"13\" font-size=\"12\" stroke=\"#e2fc8e\" stroke-width=\"1.5\" fill=\"#e2fc8e\">４</text>"]
[null,"number-5","５","５",0,0,"<rect x=\"1.5\" y=\"1.5\" rx=\"2\" ry=\"2\" width=\"14\" height=\"14\" stroke=\"#134e2e\" stroke-width=\"1\" fill=\"#005250\" />\n<text x=\"2.5\" y=\"13\" font-size=\"12\" stroke=\"#e2fc8e\" stroke-width=\"1.5\" fill=\"#e2fc8e\">５</text>"]
[null,"number-6","６","６",0,0,"<rect x=\"1.5\" y=\"1.5\" rx=\"2\" ry=\"2\" width=\"14\" height=\"14\" stroke=\"#134e2e\" stroke-width=\"1\" fill=\"#005250\" />\n<text x=\"2.5\" y=\"13\" font-size=\"12\" stroke=\"#e2fc8e\" stroke-width=\"1.5\" fill=\"#e2fc8e\">６</text>"]
[null,"number-7","７","７",0,0,"<rect x=\"1.5\" y=\"1.5\" rx=\"2\" ry=\"2\" width=\"14\" height=\"14\" stroke=\"#134e2e\" stroke-width=\"1\" fill=\"#005250\" />\n<text x=\"2.5\" y=\"13\" font-size=\"12\" stroke=\"#e2fc8e\" stroke-width=\"1.5\" fill=\"#e2fc8e\">７</text>"]
[null,"number-8","８","８",0,0,"<rect x=\"1.5\" y=\"1.5\" rx=\"2\" ry=\"2\" width=\"14\" height=\"14\" stroke=\"#134e2e\" stroke-width=\"1\" fill=\"#005250\" />\n<text x=\"2.5\" y=\"13\" font-size=\"12\" stroke=\"#e2fc8e\" stroke-width=\"1.5\" fill=\"#e2fc8e\">８</text>"]
[null,"number-9","９","９",0,0,"<rect x=\"1.5\" y=\"1.5\" rx=\"2\" ry=\"2\" width=\"14\" height=\"14\" stroke=\"#134e2e\" stroke-width=\"1\" fill=\"#005250\" />\n<text x=\"2.5\" y=\"13\" font-size=\"12\" stroke=\"#e2fc8e\" stroke-width=\"1.5\" fill=\"#e2fc8e\">９</text>"]
[null,"axis","磁軸","軸",1,1,"<radialGradient id=\"axis-g1\" gradientUnits=\"userSpaceOnUse\" cx=\"8.5\" cy=\"8.5\" fx=\"8.5\" fy=\"8.5\" r=\"8.5\">\n    <stop offset=\"25%\" stop-color=\"#fffee6\" />\n    <stop offset=\"50%\" stop-color=\"#c02992\" />\n    <stop offset=\"75%\" stop-color=\"#961f79\" />\n    <stop offset=\"100%\" stop-color=\"rgba(150,31,121,0.0)\" />\n</radialGradient>\n<linearGradient id=\"axis-g2\" x1=\"0\" y1=\"0\" x2=\"100%\" y2=\"0\">\n    <stop offset=\"0%\" stop-color=\"#edeedc\" />\n    <stop offset=\"25%\" stop-color=\"#f791d2\" />\n    <stop offset=\"50%\" stop-color=\"#fffce1\" />\n    <stop offset=\"75%\" stop-color=\"#f791d2\" />\n    <stop offset=\"100%\" stop-color=\"#edeedc\" />\n</linearGradient>\n<linearGradient id=\"axis-g3\" x1=\"0\" y1=\"0\" x2=\"0\" y2=\"100%\">\n    <stop offset=\"0%\" stop-color=\"#edeedc\" />\n    <stop offset=\"25%\" stop-color=\"#f791d2\" />\n    <stop offset=\"50%\" stop-color=\"#fffce1\" />\n    <stop offset=\"75%\" stop-color=\"#f791d2\" />\n    <stop offset=\"100%\" stop-color=\"#edeedc\" />\n</linearGradient>\n<rect x=\"0.5\" y=\"0.5\" width=\"16\" height=\"16\" fill=\"#50214f\" />\n<circle cx=\"8.5\" cy=\"8.5\" r=\"8.5\" fill=\"url(#axis-g1)\" />\n<line x1=\"0.5\" y1=\"0.5\" x2=\"16.5\" y2=\"16.5\" stroke=\"url(#axis-g2)\" stroke-width=\"1\" />\n<line x1=\"16.5\" y1=\"0.5\" x2=\"0.5\" y2=\"16.5\" stroke=\"url(#axis-g2)\" stroke-width=\"1\" />\n<rect x=\"0.5\" y=\"7.5\" width=\"16\" height=\"2\" fill=\"url(#axis-g2)\" />\n<rect x=\"7.5\" y=\"0.5\" width=\"2\" height=\"16\" fill=\"url(#axis-g3)\" />"]
[null,"rock","岩","岩",0,1,"<radialGradient id=\"rock-g1\" gradientUnits=\"objectBoundingBox\" spreadMethod=\"reflect\">\n    <stop offset=\"25%\" stop-color=\"#aa4720\" />\n    <stop offset=\"65%\" stop-color=\"#e16935\" />\n    <stop offset=\"100%\" stop-color=\"#db8e58\" />\n</radialGradient>\n<path d=\"M3.5,7.5 q-5,5,-1,9 l12,0 q4,-1,-1,-8 q1,-9,-5,-6 q-5,1,-5,5\" stroke=\"none\" fill=\"#f3c06f\" />\n<path d=\"M1.5,9.5 c3,-2,6,9,13,0 l5,-6 l-5,6 q-2,-9,-13,0\" fill=\"url(#rock-g1)\" />\n<path d=\"M1.5,10.5 c4,4,10,0,14,6 l-14,0 l0,3 l0,-3 l-3,0 l3,0\" fill=\"url(#rock-g1)\" />\n<path d=\"M3.5,7.5 q-5,5,-1,9 l12,0 q4,-1,-1,-8 q1,-9,-5,-6 q-5,1,-5,5\" stroke=\"#71380b\" stroke-width=\"1\" fill=\"none\" />"]
[null,"stone","石","石",0,1,"<radialGradient id=\"stone-g1\" gradientUnits=\"objectBoundingBox\" spreadMethod=\"reflect\">\n    <stop offset=\"25%\" stop-color=\"#5f6769\" />\n    <stop offset=\"65%\" stop-color=\"#8b9596\" />\n    <stop offset=\"100%\" stop-color=\"#a5aead\" />\n</radialGradient>\n<path d=\"M3.5,7.5 q-5,5,-1,9 l12,0 q4,-1,-1,-8 q1,-9,-5,-6 q-5,1,-5,5\" stroke=\"none\" fill=\"#d9ddde\" />\n<path d=\"M1.5,9.5 c3,-2,6,9,13,0 l5,-6 l-5,6 q-2,-9,-13,0\" fill=\"url(#stone-g1)\" />\n<path d=\"M1.5,10.5 c4,4,10,0,14,6 l-14,0 l0,3 l0,-3 l-3,0 l3,0\" fill=\"url(#stone-g1)\" />\n<path d=\"M3.5,7.5 q-5,5,-1,9 l12,0 q4,-1,-1,-8 q1,-9,-5,-6 q-5,1,-5,5\" stroke=\"#232319\" stroke-width=\"1\" fill=\"none\" />"]
[null,"statue","石像","像",1,1,"<radialGradient id=\"statue-g1\" gradientUnits=\"userSpaceOnUse\" cx=\"2.5\" cy=\"5.5\" fx=\"2.5\" fy=\"5.5\" r=\"16\">\n    <stop offset=\"50%\" stop-color=\"#a9a790\" />\n    <stop offset=\"80%\" stop-color=\"#878d71\" />\n    <stop offset=\"100%\" stop-color=\"#88a788\" />\n</radialGradient>\n<ellipse cx=\"8.5\" cy=\"14.5\" rx=\"6\" ry=\"2\" stroke=\"none\" fill=\"#534d3e\" />\n<path d=\"M8.5,0.5 q-4,0,-6,7 q-5,4,0,5 q0,7,6,2 q6,4,6,-2 q5,-1,0,-5 q-2,-7,-6,-7\" stroke=\"#4d4b34\" stroke-width=\"1\" fill=\"url(#statue-g1)\" />\n<path d=\"M4,6 l2,2 l1,0 l0,-1 l-1,-1 l-2,0\" stroke=\"none\" fill=\"#4f4c3b\" />\n<path d=\"M13,6 l-2,2 l-1,0 l0,-1 l1,-1 l2,0\" stroke=\"none\" fill=\"#4f4c3b\" />\n<path d=\"M8.5,9 l-1,1.5 l2,0 l-1,-1.5\" stroke=\"#4f4c3b\" stroke-width=\"0.5\" fill=\"#4f4c3b\" />"]
[null,"wall-gimmick","障壁","障",0,0,"<linearGradient id=\"wall-gimmick-g1\" x1=\"0\" y1=\"0\" x2=\"0\" y2=\"100%\">\n    <stop offset=\"25%\" stop-color=\"#8dcdcc\" />\n    <stop offset=\"50%\" stop-color=\"#75b6bc\" />\n</linearGradient>\n<linearGradient id=\"wall-gimmick-g2\" x1=\"0\" y1=\"0\" x2=\"0\" y2=\"100%\">\n    <stop offset=\"0%\" stop-color=\"#8dcdcc\" />\n    <stop offset=\"100%\" stop-color=\"#75b6bc\" />\n</linearGradient>\n<radialGradient id=\"wall-gimmick-g3\" gradientUnits=\"userSpaceOnUse\" cx=\"7\" cy=\"7\" fx=\"7\" fy=\"7\" r=\"3\">\n    <stop offset=\"0%\" stop-color=\"#2ee8ff\" />\n    <stop offset=\"100%\" stop-color=\"#1d678c\" />\n</radialGradient>\n<rect x=\"1.5\" y=\"1.5\" width=\"14\" height=\"14\" rx=\"1\" ry=\"1\" stroke=\"#95e2d0\" stroke-width=\"1\" fill=\"#70b2ae\" />\n<rect x=\"3.5\" y=\"3.5\" width=\"3\" height=\"3\" stroke=\"#387274\" stroke-width=\"1\" fill=\"url(#wall-gimmick-g1)\" />\n<rect x=\"6.5\" y=\"3.5\" width=\"4\" height=\"3\" stroke=\"#387274\" stroke-width=\"1\" fill=\"url(#wall-gimmick-g1)\" />\n<rect x=\"10.5\" y=\"3.5\" width=\"3\" height=\"3\" stroke=\"#387274\" stroke-width=\"1\" fill=\"url(#wall-gimmick-g1)\" />\n<rect x=\"3.5\" y=\"6.5\" width=\"5\" height=\"4\" stroke=\"#387274\" stroke-width=\"1\" fill=\"url(#wall-gimmick-g1)\" />\n<rect x=\"8.5\" y=\"6.5\" width=\"5\" height=\"4\" stroke=\"#387274\" stroke-width=\"1\" fill=\"url(#wall-gimmick-g1)\" />\n<rect x=\"3.5\" y=\"10.5\" width=\"3\" height=\"3\" stroke=\"#387274\" stroke-width=\"1\" fill=\"url(#wall-gimmick-g2)\" />\n<rect x=\"6.5\" y=\"10.5\" width=\"4\" height=\"3\" stroke=\"#387274\" stroke-width=\"1\" fill=\"url(#wall-gimmick-g2)\" />\n<rect x=\"10.5\" y=\"10.5\" width=\"3\" height=\"3\" stroke=\"#387274\" stroke-width=\"1\" fill=\"url(#wall-gimmick-g2)\" />\n<circle cx=\"8.5\" cy=\"8.5\" r=\"3\" fill=\"url(#wall-gimmick-g3)\" />"]
[null,"crystal","水晶","晶",1,1,"<linearGradient id=\"crystal-g1\" x1=\"0\" y1=\"0\" x2=\"0\" y2=\"100%\">\n    <stop offset=\"0.0\" stop-color=\"#bdf8f6\" />\n    <stop offset=\"0.5\" stop-color=\"#5173a1\" />\n</linearGradient>\n<linearGradient id=\"crystal-g2\" x1=\"0\" y1=\"0\" x2=\"0\" y2=\"100%\">\n    <stop offset=\"0.0\" stop-color=\"#80c8d6\" />\n    <stop offset=\"1.0\" stop-color=\"#5173a1\" />\n</linearGradient>\n<linearGradient id=\"crystal-g3\" x1=\"0\" y1=\"0\" x2=\"0\" y2=\"100%\">\n    <stop offset=\"0.0\" stop-color=\"#e4f9ff\" />\n    <stop offset=\"1.0\" stop-color=\"#4cc8ff\" />\n</linearGradient>\n<linearGradient id=\"crystal-g4\" x1=\"0\" y1=\"0\" x2=\"0\" y2=\"100%\">\n    <stop offset=\"0.0\" stop-color=\"#caf7ff\" />\n    <stop offset=\"1.0\" stop-color=\"#7e8dde\" />\n</linearGradient>\n<linearGradient id=\"crystal-g5\" x1=\"0\" y1=\"0\" x2=\"100%\" y2=\"0\">\n    <stop offset=\"0.0\" stop-color=\"#80b4fd\" />\n    <stop offset=\"1.0\" stop-color=\"#b1ffff\" />\n</linearGradient>\n<path d=\"M5.5,16.5 l3,-14 l3,-2 l0,3 l-1,13\" stroke=\"#9fb6a2\" stroke-width=\"1\" fill=\"url(#crystal-g1)\" />\n<path d=\"M5.5,12.5 l8,-8 l1,0 l0,3 l-5,5\" stroke=\"#1892d1\" stroke-width=\"1\" fill=\"url(#crystal-g2)\" />\n<path d=\"M7.5,13.5 l-7,-7 l0,-4 l3,0 l5,7\" stroke=\"#1892d1\" stroke-width=\"1\" fill=\"url(#crystal-g3)\" />\n<path d=\"M4.5,16.5 l-4,-4 l1,-3 l3,0 l4,7 l-4,0\" stroke=\"#7e8dde\" stroke-width=\"1\" fill=\"url(#crystal-g1)\" />\n<path d=\"M6.5,16.5 l7,-7 l2,0 l0,3 l-5,4 l-4,0\" stroke=\"#5173a1\" stroke-width=\"1\" fill=\"url(#crystal-g4)\" />\n<path d=\"M7.5,16.5 l0,-7 l4,-2 l2,3 l-2,6 l-4,0\" stroke=\"#0562b0\" stroke-width=\"1\" fill=\"url(#crystal-g5)\" />"]
[null,"hole","落とし穴","穴",1,1,"<radialGradient id=\"hole-g1\" gradientUnits=\"userSpaceOnUse\" cx=\"8.5\" cy=\"8.5\" fx=\"8.5\" fy=\"8.5\" r=\"7.5\">\n    <stop offset=\"40%\" stop-color=\"#102838\"/>\n    <stop offset=\"75%\" stop-color=\"#50c8e0\"/>\n</radialGradient>\n<circle cx=\"8.5\" cy=\"8.5\" r=\"7.5\" fill=\"url(#hole-g1)\" />\n"]
[null,"direction-up","上方向","∧",0,0,"<path d=\"M8.5,-2.5 l-5,5 l10,0 l-5,-5\" stroke=\"#b09723\" stroke-width=\"1\" fill=\"#fff443\" />"]
[null,"direction-down","下方向","∨",0,0,"<path d=\"M8.5,19.5 l-5,-5 l10,0 l-5,5\" stroke=\"#b09723\" stroke-width=\"1\" fill=\"#fff443\" />"]
[null,"direction-left","左方向","＜",0,0,"<path d=\"M-2.5,8.5 l5,5 l0,-10 l-5,5\" stroke=\"#b09723\" stroke-width=\"1\" fill=\"#fff443\" />"]
[null,"direction-right","右方向","＞",0,0,"<path d=\"M19.5,8.5 l-5,-5 l0,10 l5,-5\" stroke=\"#b09723\" stroke-width=\"1\" fill=\"#fff443\" />"]
[null,"balloon","気球","球",1,1,"<path fill=\"#9d6f40\" stroke=\"#000000\" stroke-width=\"0.5\" d=\"m 3,12 v 2.5 l 2.5,2 h 5.5 l 2.5,-2 v -2.5 z\" />\n<rect x=\"5.5\" y=\"9.5\" width=\"1\" height=\"2.5\" fill=\"#fffa52\" stroke=\"#000000\" stroke-width=\"0.5\" />\n<rect x=\"10\" y=\"9.5\" width=\"1\" height=\"2.5\" fill=\"#fffa52\" stroke=\"#000000\" stroke-width=\"0.5\" />\n<rect x=\"3.5\" y=\"13\" width=\"9.5\" height=\"1.5\" fill=\"#caa26c\" />\n<ellipse cx=\"8.3\" cy=\"5.8\" rx=\"6.6\" ry=\"4.7\" fill=\"#fffa52\" stroke=\"#000000\" stroke-width=\"0.5\" />\n<rect x=\"3\" y=\"3.5\" width=\"10.5\" height=\"4.5\" fill=\"#dfb300\" stroke-width=\"0.5\" />\n<path d=\"m 14,12.5 v 2 c 0.9,-0.3 1.9,-0.5 2,-1 0,-0.5 -1.1,-0.7 -2,-1 z\" fill=\"#ffffff\" stroke=\"#000000\" stroke-width=\"0.3\" />\n<path d=\"m 13.5,12.5 c 0.3,-0.6 0.6,-0.7 1,0 l -1,3 c 0.3,0.6 0.6,0.7 1,0 z\" fill=\"#ffffff\" stroke=\"#000000\" stroke-width=\"0.3\" />\n"]
[]
[]
[]
[]
[]
[]
[null,"吹き出しの向き"]
[null,"値"]
[]
[null,"↖"]
[null,"↗"]
[null,"↙"]
[null,"↘"]
[]
[]
[]
[null,"図形"]
[null,"値"]
[]
[null,"直線"]
[null,"矢印"]
[null,"四角形（塗）"]
[null,"四角形"]
[null,"ワープ"]
[]
[]
[]
[null,"座標/色など"]
[null,"適用箇所","値"]
[null,"全体"]
[null,"左右の空白のピクセル数",150,"(0-999)"]
[null,"上の空白のピクセル数\n",60,"(0-999)"]
[null,"フロアタイトルの色","#000000"]
[null,"フロアタイトルの文字サイズ",18,"(1-99)"]
[null,"セル"]
[null,"セルの幅",17,"(1-99)"]
[null,"セルの高さ",17,"(1-99)"]
[null,"横のセル数",35,"(1-130)"]
[null,"縦のセル数",30,"(1-130)"]
[null,"塗りつぶしの不透明度",0.65,"(0.0-1.0)"]
[null,"罫線の色","#005431"]
[null,"罫線の太さ",2,"(0-9。0のときはガイド無し)"]
[null,"吹き出し"]
[null,"吹き出しの文字色","#ff0000"]
[null,"吹き出しの文字サイズ",10,"(1-99)"]
[null,"吹き出しの斜め線の長さ",17,"(0-99)"]
[null,"下塗り"]
[null,"下塗りの色","#b5da8c"]
[null,"下塗りの補助目盛線の色","#8fba60"]
[null,"下塗りの主目盛線の色","#3f6c11"]
[null,"ガイド"]
[null,"ガイドの背景色","#001417"]
[null,"ガイドの文字色","#6ecfd6"]
[null,"ガイドの文字サイズ",12,"(1-99)"]
[null,"レイヤー選択"]
[null,"レイヤー選択の背景色","#001919"]
[null,"レイヤー選択の文字色","#21dde6"]
[null,"選択中レイヤーの背景色","#00deee"]
[null,"選択中レイヤーの文字色","#002368"]
[null,"レイヤー選択の枠線の色","#001818"]
[null,"レイヤー選択の文字サイズ",12,"(1-99)"]
[null,"フロア選択"]
[null,"フロア選択の幅",180,"(1-999)"]
[null,"フロア選択の背景色","#b5fb75"]
[null,"フロア選択の文字色","#123c13"]
[null,"無効なフロア選択の背景色","#5a7d3a"]
[null,"無効なフロア選択の文字色","#091f0a"]
[null,"選択中フロアの背景色","#e0e938"]
[null,"選択中フロアの文字色","#3f4857"]
[null,"フロア選択の文字サイズ",12,"(1-99)"]
[null,"フロア選択１ページの階数",20,"(1-99)"]
[null,"参照"]
[null,"リンクの色","blue"]
[]
[]
[]
[null,"スタイルシートへの追加分"]
[null,"div.reference-title{\n    background-color: #b1f378;\n    color: black;\n    font-size: 12pt;\n    font-weight: bold;\n    width: 100%;\n}\n\ntable.reference{\n    background-color: black;\n    border: 1px solid black;\n    border-collapse: collapse;\n    width: 100%;\n}\n\ntable.reference tr th{\n    background-color: #061f1c;\n    border: 1px solid #a0fd8b;\n    color: #9da5b0;\n    font-size: 9pt;\n    font-weight: bold;\n    text-align: center;\n    vertical-align: middle;\n}\n\ntable.reference tr td{\n    background-color: #85d33f;\n    border: 1px solid #001a0b;\n    color: #001a0b;\n    font-size: 9pt;\n}"]
[]
[null,"SVG定義への追加分"]
[null,"<g id=\"icon-fire\">\n    <radialGradient id=\"icon-fire-g1\" cx=\"8\" cy=\"12\" fx=\"8\" fy=\"14\" r=\"6\" gradientUnits=\"userSpaceOnUse\">\n        <stop offset=\"0%\" stop-color=\"#ffff00\" />\n        <stop offset=\"100%\" stop-color=\"#ff0000\" />\n    </radialGradient>\n    <path d=\"M 5 0 C 6 5 4 6 3 9.5 A 5 5 0 0 0 3 11 A 5 5 0 0 0 8 16 A 5 5 0 0 0 13 11 C 13 8 10 4 5 0\" stroke=\"none\" fill=\"url(#icon-fire-g1)\" />\n</g>\n<g id=\"icon-ice\">\n    <path d=\"M 11.5,12 v -2 m 2,-1.5 -2,1 m 1.5,3.5 v -2.5 m 2,-1 -2,1 m 1.5,1 -4.5,-2.5 v 0 0 m -5.5,3 v -2 m -2,-1.5 2,1 m -1.5,3.5 v -2.5 m -2,-1 2,1 m -1.5,1 4.5,-2.5 v 0 0 m 5.5,-5 v 2 m 2,1.5 -2,-1 m 1.5,-3.5 v 2.5 m 2,1 -2,-1 m 1.5,-1 -4.5,2.5 v 0 0 m -2,3 -1.73,-1 v -2 l 1.73,-1 1.7,1 v 2 z m 0,-9 0.1,5 v 0 h -0.1 m -2,-4.5 c 2,1 2,1 2,1 m 2,-1 c -2,1 -2,1 -2,1 m -2,1 c 2,1 2,1 2,1 m 2,-1 c -2,1 -2,1 -2,1 m -3.5,-0.5 v 2 m -2,1.5 2,-1 m -1.5,-3.5 v 2.5 m -2,1 2,-1 m -1.5,-1 4.5,2.5 v 0 0 m 2,8 c 0,-5 0,-5 0,-5 v 0 0 m -2,4.5 c 2,-1 2,-1 2,-1 m 2,1 c -2,-1 -2,-1 -2,-1 m -2,-1 c 2,-1 2,-1 2,-1 m 2,1 c -2,-1 -2,-1 -2,-1\" stroke=\"#00ffff\" stroke-width=\"1\" fill=\"none\" />\n</g>\n<g id=\"icon-thunder\">\n    <path d=\"m 12,1 -10,8 6,0.5 -4,5.5 10,-8 -6,-0.5\" stroke=\"none\" fill=\"#ffff00\" />\n</g>\n<g id=\"icon-slash\">\n    <path d=\"m 13,0 c -5.5,5 -8,9.5 -10,16 4.5,-4.5 7.5,-8.5 10,-16\" stroke=\"none\" fill=\"#ffffff\" />\n</g>\n<g id=\"icon-stab\">\n    <linearGradient id=\"icon-stab-g1\" x1=\"8\" y1=\"8\" x2=\"13\" y2=\"8\" gradientUnits=\"userSpaceOnUse\">\n        <stop offset=\"0%\" stop-color=\"#ffffff\" />\n        <stop offset=\"100%\" stop-color=\"#ffffff00\" />\n    </linearGradient>\n    <path d=\"m 1,8 5,-3 v 6\" stroke=\"none\" fill=\"#ffffff\" />\n    <rect x=\"8\" y=\"7\" width=\"8\" height=\"2\" stroke=\"none\" fill=\"#ffffff\" />\n    <path d=\"m 8,4 v 8 l 5,3 v -14 z\" stroke=\"none\" fill=\"url(#icon-stab-g1)\" />\n</g>\n<g id=\"icon-bash\">\n    <radialGradient id=\"icon-bash-g1\" cx=\"1\" cy=\"15\" fx=\"1\" fy=\"15\" r=\"32\" gradientUnits=\"userSpaceOnUse\">\n        <stop offset=\"0%\" stop-color=\"#ffffff\" />\n        <stop offset=\"100%\" stop-color=\"#ffffff00\" />\n    </radialGradient>\n    <path d=\"M 4.25,7.01 A 5.75,6.03 0 0 0 2,7.5 V 15 H 9.67 A 5.75,6.03 0 0 0 10,13 5.75,6.03 0 0 0 4.25,7.01 Z\" stroke=\"none\" fill=\"#ffffff\" />\n    <path d=\"M 7.35,1.86 3.18,8.42 2.1,2.42 V 15 H 14.5 L 8.63,14 15.2,9.71 7.6,11.5 12,5 5.69,9.47 Z\" stroke=\"none\" fill=\"url(#icon-bash-g1)\" />\n</g>\n<g id=\"icon-stun\">\n    <radialGradient id=\"icon-stun-g1\" cx=\"14\" cy=\"14\" fx=\"14\" fy=\"14\" r=\"10\" gradientUnits=\"userSpaceOnUse\">\n        <stop offset=\"0%\" stop-color=\"#ffffff\" />\n        <stop offset=\"100%\" stop-color=\"#ffcc00\" />\n    </radialGradient>\n    <path d=\"m 15.1,1 v 14 h -14.1 l 3,-2 -3,-3 5,-1 -4,-7 7,4 1,-5 3,3\" stroke=\"none\" fill=\"url(#icon-stun-g1)\" />\n</g>\n"]

{"sheet":"Base","index":1,"n_rows":120,"n_cols":51,"rows_kept":120,"cut":false,"hidden":false,"merged":[[29,2,33,2],[4,2,8,2],[9,2,13,2],[14,2,18,2],[19,2,23,2],[24,2,28,2],[2,3,2,27],[2,28,2,37],[3,33,3,37],[0,30,1,33],[3,3,3,7],[3,8,3,12],[3,13,3,17],[3,18,3,22],[3,23,3,27],[3,28,3,32]]}
[null,null,null,null,null,null,null,null,null,null,null,null,null,null,null,null,null,null,null,null,null,null,null,null,null,null,null,null,null,null,"パレット"]
[null,null,null,null,null,null,null,null,null,null,null,null,null,null,null,null,null,null,null,null,null,null,null,null,null,null,null,null,null,null,null,null,null,null,null,null,null,null,null,null,null,null,null,null,null,"[A-1](a-1)"]
["ツールバー",null,null,"タイトル",null,null,null,null,null,null,null,null,null,null,null,null,null,null,null,null,null,null,null,null,null,null,null,null,{"$f":"#NAME?","v":{"$error":"#NAME?"}},null,null,null,null,null,null,null,null,null,null,"アイコン",null,null,null,null,null,"図形"]
[null,null,null,1,null,null,null,null,2,null,null,null,null,3,null,null,null,null,4,null,null,null,null,5,null,null,null,null,6,null,null,null,null,7,null,null,null,null,null,"座標","アイコン","レイヤー","吹き出しの向き","テキスト",null,"座標","図形","レイヤー","色","X","Y"]
[null,null,"A",null,null,null,null,null,null,null,null,null,null,null,null,null,null,null,null,null,null,null,null,null,null,null,null,null,null,null,null,null,null,null,null,null,null,null,null,null,""]
[null,null,null,null,null,null,null,null,null,null,null,null,null,null,null,null,null,null,null,null,null,null,null,null,null,null,null,null,null,null,null,null,null,null,null,null,null,null,null,null,""]
[null,null,null,null,null,null,null,null,null,null,null,null,null,null,null,null,null,null,null,null,null,null,null,null,null,null,null,null,null,null,null,null,null,null,null,null,null,null,null,null,""]
[null,null,null,null,null,null,null,null,null,null,null,null,null,null,null,null,null,null,null,null,null,null,null,null,null,null,null,null,null,null,null,null,null,null,null,null,null,null,null,null,""]
[null,null,null,null,null,null,null,null,null,null,null,null,null,null,null,null,null,null,null,null,null,null,null,null,null,null,null,null,null,null,null,null,null,null,null,null,null,null,null,null,""]
[null,null,"B",null,null,null,null,null,null,null,null,null,null,null,null,null,null,null,null,null,null,null,null,null,null,null,null,null,null,null,null,null,null,null,null,null,null,null,null,null,""]
[null,null,null,null,null,null,null,null,null,null,null,null,null,null,null,null,null,null,null,null,null,null,null,null,null,null,null,null,null,null,null,null,null,null,null,null,null,null,null,null,""]
[null,null,null,null,null,null,null,null,null,null,null,null,null,null,null,null,null,null,null,null,null,null,null,null,null,null,null,null,null,null,null,null,null,null,null,null,null,null,null,null,""]
[null,null,null,null,null,null,null,null,null,null,null,null,null,null,null,null,null,null,null,null,null,null,null,null,null,null,null,null,null,null,null,null,null,null,null,null,null,null,null,null,""]
[null,null,null,null,null,null,null,null,null,null,null,null,null,null,null,null,null,null,null,null,null,null,null,null,null,null,null,null,null,null,null,null,null,null,null,null,null,null,null,null,""]
[null,null,"C",null,null,null,null,null,null,null,null,null,null,null,null,null,null,null,null,null,null,null,null,null,null,null,null,null,null,null,null,null,null,null,null,null,null,null,null,null,""]
[null,null,null,null,null,null,null,null,null,null,null,null,null,null,null,null,null,null,null,null,null,null,null,null,null,null,null,null,null,null,null,null,null,null,null,null,null,null,null,null,""]
[null,null,null,null,null,null,null,null,null,null,null,null,null,null,null,null,null,null,null,null,null,null,null,null,null,null,null,null,null,null,null,null,null,null,null,null,null,null,null,null,""]
[null,null,null,null,null,null,null,null,null,null,null,null,null,null,null,null,null,null,null,null,null,null,null,null,null,null,null,null,null,null,null,null,null,null,null,null,null,null,null,null,""]
[null,null,null,null,null,null,null,null,null,null,null,null,null,null,null,null,null,null,null,null,null,null,null,null,null,null,null,null,null,null,null,null,null,null,null,null,null,null,null,null,""]
[null,null,"D",null,null,null,null,null,null,null,null,null,null,null,null,null,null,null,null,null,null,null,null,null,null,null,null,null,null,null,null,null,null,null,null,null,null,null,null,null,""]
[null,null,null,null,null,null,null,null,null,null,null,null,null,null,null,null,null,null,null,null,null,null,null,null,null,null,null,null,null,null,null,null,null,null,null,null,null,null,null,null,""]
[null,null,null,null,null,null,null,null,null,null,null,null,null,null,null,null,null,null,null,null,null,null,null,null,null,null,null,null,null,null,null,null,null,null,null,null,null,null,null,null,""]
[null,null,null,null,null,null,null,null,null,null,null,null,null,null,null,null,null,null,null,null,null,null,null,null,null,null,null,null,null,null,null,null,null,null,null,null,null,null,null,null,""]
[null,null,null,null,null,null,null,null,null,null,null,null,null,null,null,null,null,null,null,null,null,null,null,null,null,null,null,null,null,null,null,null,null,null,null,null,null,null,null,null,""]
[null,null,"E",null,null,null,null,null,null,null,null,null,null,null,null,null,null,null,null,null,null,null,null,null,null,null,null,null,null,null,null,null,null,null,null,null,null,null,null,null,""]
[null,null,null,null,null,null,null,null,null,null,null,null,null,null,null,null,null,null,null,null,null,null,null,null,null,null,null,null,null,null,null,null,null,null,null,null,null,null,null,null,""]
[null,null,null,null,null,null,null,null,null,null,null,null,null,null,null,null,null,null,null,null,null,null,null,null,null,null,null,null,null,null,null,null,null,null,null,null,null,null,null,null,""]
[null,null,null,null,null,null,null,null,null,null,null,null,null,null,null,null,null,null,null,null,null,null,null,null,null,null,null,null,null,null,null,null,null,null,null,null,null,null,null,null,""]
[null,null,null,null,null,null,null,null,null,null,null,null,null,null,null,null,null,null,null,null,null,null,null,null,null,null,null,null,null,null,null,null,null,null,null,null,null,null,null,null,""]
[null,null,"F",null,null,null,null,null,null,null,null,null,null,null,null,null,null,null,null,null,null,null,null,null,null,null,null,null,null,null,null,null,null,null,null,null,null,null,null,null,""]
[null,null,null,null,null,null,null,null,null,null,null,null,null,null,null,null,null,null,null,null,null,null,null,null,null,null,null,null,null,null,null,null,null,null,null,null,null,null,null,null,""]
[null,null,null,null,null,null,null,null,null,null,null,null,null,null,null,null,null,null,null,null,null,null,null,null,null,null,null,null,null,null,null,null,null,null,null,null,null,null,null,null,""]
[null,null,null,null,null,null,null,null,null,null,null,null,null,null,null,null,null,null,null,null,null,null,null,null,null,null,null,null,null,null,null,null,null,null,null,null,null,null,null,null,""]
[null,null,null,null,null,null,null,null,null,null,null,null,null,null,null,null,null,null,null,null,null,null,null,null,null,null,null,null,null,null,null,null,null,null,null,null,null,null,null,null,""]
[null,null,null,null,null,null,null,null,null,null,null,null,null,null,null,null,null,null,null,null,null,null,null,null,null,null,null,null,null,null,null,null,null,null,null,null,null,null,null,null,""]
[null,null,null,null,null,null,null,null,null,null,null,null,null,null,null,null,null,null,null,null,null,null,null,null,null,null,null,null,null,null,null,null,null,null,null,null,null,null,null,null,""]
[null,null,null,null,null,null,null,null,null,null,null,null,null,null,null,null,null,null,null,null,null,null,null,null,null,null,null,null,null,null,null,null,null,null,null,null,null,null,null,null,""]
[null,null,null,null,null,null,null,null,null,null,null,null,null,null,null,null,null,null,null,null,null,null,null,null,null,null,null,null,null,null,null,null,null,null,null,null,null,null,null,null,""]
[null,null,null,null,null,null,null,null,null,null,null,null,null,null,null,null,null,null,null,null,null,null,null,null,null,null,null,null,null,null,null,null,null,null,null,null,null,null,null,null,""]
[null,null,null,null,null,null,null,null,null,null,null,null,null,null,null,null,null,null,null,null,null,null,null,null,null,null,null,null,null,null,null,null,null,null,null,null,null,null,null,null,""]
[null,null,null,null,null,null,null,null,null,null,null,null,null,null,null,null,null,null,null,null,null,null,null,null,null,null,null,null,null,null,null,null,null,null,null,null,null,null,null,null,""]
[null,null,null,null,null,null,null,null,null,null,null,null,null,null,null,null,null,null,null,null,null,null,null,null,null,null,null,null,null,null,null,null,null,null,null,null,null,null,null,null,""]
[null,null,null,null,null,null,null,null,null,null,null,null,null,null,null,null,null,null,null,null,null,null,null,null,null,null,null,null,null,null,null,null,null,null,null,null,null,null,null,null,""]
[null,null,null,null,null,null,null,null,null,null,null,null,null,null,null,null,null,null,null,null,null,null,null,null,null,null,null,null,null,null,null,null,null,null,null,null,null,null,null,null,""]
[null,null,null,null,null,null,null,null,null,null,null,null,null,null,null,null,null,null,null,null,null,null,null,null,null,null,null,null,null,null,null,null,null,null,null,null,null,null,null,null,""]
[null,null,null,null,null,null,null,null,null,null,null,null,null,null,null,null,null,null,null,null,null,null,null,null,null,null,null,null,null,null,null,null,null,null,null,null,null,null,null,null,""]
[null,null,null,null,null,null,null,null,null,null,null,null,null,null,null,null,null,null,null,null,null,null,null,null,null,null,null,null,null,null,null,null,null,null,null,null,null,null,null,null,""]
[null,null,null,null,null,null,null,null,null,null,null,null,null,null,null,null,null,null,null,null,null,null,null,null,null,null,null,null,null,null,null,null,null,null,null,null,null,null,null,null,""]
[null,null,null,null,null,null,null,null,null,null,null,null,null,null,null,null,null,null,null,null,null,null,null,null,null,null,null,null,null,null,null,null,null,null,null,null,null,null,null,null,""]
[null,null,null,null,null,null,null,null,null,null,null,null,null,null,null,null,null,null,null,null,null,null,null,null,null,null,null,null,null,null,null,null,null,null,null,null,null,null,null,null,""]
[null,null,null,null,null,null,null,null,null,null,null,null,null,null,null,null,null,null,null,null,null,null,null,null,null,null,null,null,null,null,null,null,null,null,null,null,null,null,null,null,""]
[null,null,null,null,null,null,null,null,null,null,null,null,null,null,null,null,null,null,null,null,null,null,null,null,null,null,null,null,null,null,null,null,null,null,null,null,null,null,null,null,""]
[null,null,null,null,null,null,null,null,null,null,null,null,null,null,null,null,null,null,null,null,null,null,null,null,null,null,null,null,null,null,null,null,null,null,null,null,null,null,null,null,""]
[null,null,null,null,null,null,null,null,null,null,null,null,null,null,null,null,null,null,null,null,null,null,null,null,null,null,null,null,null,null,null,null,null,null,null,null,null,null,null,null,""]
[null,null,null,null,null,null,null,null,null,null,null,null,null,null,null,null,null,null,null,null,null,null,null,null,null,null,null,null,null,null,null,null,null,null,null,null,null,null,null,null,""]
[null,null,null,null,null,null,null,null,null,null,null,null,null,null,null,null,null,null,null,null,null,null,null,null,null,null,null,null,null,null,null,null,null,null,null,null,null,null,null,null,""]
[null,null,null,null,null,null,null,null,null,null,null,null,null,null,null,null,null,null,null,null,null,null,null,null,null,null,null,null,null,null,null,null,null,null,null,null,null,null,null,null,""]
[null,null,null,null,null,null,null,null,null,null,null,null,null,null,null,null,null,null,null,null,null,null,null,null,null,null,null,null,null,null,null,null,null,null,null,null,null,null,null,null,""]
[null,null,null,null,null,null,null,null,null,null,null,null,null,null,null,null,null,null,null,null,null,null,null,null,null,null,null,null,null,null,null,null,null,null,null,null,null,null,null,null,""]
[null,null,null,null,null,null,null,null,null,null,null,null,null,null,null,null,null,null,null,null,null,null,null,null,null,null,null,null,null,null,null,null,null,null,null,null,null,null,null,null,""]
[null,null,null,null,null,null,null,null,null,null,null,null,null,null,null,null,null,null,null,null,null,null,null,null,null,null,null,null,null,null,null,null,null,null,null,null,null,null,null,null,""]
[null,null,null,null,null,null,null,null,null,null,null,null,null,null,null,null,null,null,null,null,null,null,null,null,null,null,null,null,null,null,null,null,null,null,null,null,null,null,null,null,""]
[null,null,null,null,null,null,null,null,null,null,null,null,null,null,null,null,null,null,null,null,null,null,null,null,null,null,null,null,null,null,null,null,null,null,null,null,null,null,null,null,""]
[null,null,null,null,null,null,null,null,null,null,null,null,null,null,null,null,null,null,null,null,null,null,null,null,null,null,null,null,null,null,null,null,null,null,null,null,null,null,null,null,""]
[null,null,null,null,null,null,null,null,null,null,null,null,null,null,null,null,null,null,null,null,null,null,null,null,null,null,null,null,null,null,null,null,null,null,null,null,null,null,null,null,""]
[null,null,null,null,null,null,null,null,null,null,null,null,null,null,null,null,null,null,null,null,null,null,null,null,null,null,null,null,null,null,null,null,null,null,null,null,null,null,null,null,""]
[null,null,null,null,null,null,null,null,null,null,null,null,null,null,null,null,null,null,null,null,null,null,null,null,null,null,null,null,null,null,null,null,null,null,null,null,null,null,null,null,""]
[null,null,null,null,null,null,null,null,null,null,null,null,null,null,null,null,null,null,null,null,null,null,null,null,null,null,null,null,null,null,null,null,null,null,null,null,null,null,null,null,""]
[null,null,null,null,null,null,null,null,null,null,null,null,null,null,null,null,null,null,null,null,null,null,null,null,null,null,null,null,null,null,null,null,null,null,null,null,null,null,null,null,""]
[null,null,null,null,null,null,null,null,null,null,null,null,null,null,null,null,null,null,null,null,null,null,null,null,null,null,null,null,null,null,null,null,null,null,null,null,null,null,null,null,""]
[null,null,null,null,null,null,null,null,null,null,null,null,null,null,null,null,null,null,null,null,null,null,null,null,null,null,null,null,null,null,null,null,null,null,null,null,null,null,null,null,""]
[null,null,null,null,null,null,null,null,null,null,null,null,null,null,null,null,null,null,null,null,null,null,null,null,null,null,null,null,null,null,null,null,null,null,null,null,null,null,null,null,""]
[null,null,null,null,null,null,null,null,null,null,null,null,null,null,null,null,null,null,null,null,null,null,null,null,null,null,null,null,null,null,null,null,null,null,null,null,null,null,null,null,""]
[null,null,null,null,null,null,null,null,null,null,null,null,null,null,null,null,null,null,null,null,null,null,null,null,null,null,null,null,null,null,null,null,null,null,null,null,null,null,null,null,""]
[null,null,null,null,null,null,null,null,null,null,null,null,null,null,null,null,null,null,null,null,null,null,null,null,null,null,null,null,null,null,null,null,null,null,null,null,null,null,null,null,""]
[null,null,null,null,null,null,null,null,null,null,null,null,null,null,null,null,null,null,null,null,null,null,null,null,null,null,null,null,null,null,null,null,null,null,null,null,null,null,null,null,""]
[null,null,null,null,null,null,null,null,null,null,null,null,null,null,null,null,null,null,null,null,null,null,null,null,null,null,null,null,null,null,null,null,null,null,null,null,null,null,null,null,""]
[null,null,null,null,null,null,null,null,null,null,null,null,null,null,null,null,null,null,null,null,null,null,null,null,null,null,null,null,null,null,null,null,null,null,null,null,null,null,null,null,""]
[null,null,null,null,null,null,null,null,null,null,null,null,null,null,null,null,null,null,null,null,null,null,null,null,null,null,null,null,null,null,null,null,null,null,null,null,null,null,null,null,""]
[null,null,null,null,null,null,null,null,null,null,null,null,null,null,null,null,null,null,null,null,null,null,null,null,null,null,null,null,null,null,null,null,null,null,null,null,null,null,null,null,""]
[null,null,null,null,null,null,null,null,null,null,null,null,null,null,null,null,null,null,null,null,null,null,null,null,null,null,null,null,null,null,null,null,null,null,null,null,null,null,null,null,""]
[null,null,null,null,null,null,null,null,null,null,null,null,null,null,null,null,null,null,null,null,null,null,null,null,null,null,null,null,null,null,null,null,null,null,null,null,null,null,null,null,""]
[null,null,null,null,null,null,null,null,null,null,null,null,null,null,null,null,null,null,null,null,null,null,null,null,null,null,null,null,null,null,null,null,null,null,null,null,null,null,null,null,""]
[null,null,null,null,null,null,null,null,null,null,null,null,null,null,null,null,null,null,null,null,null,null,null,null,null,null,null,null,null,null,null,null,null,null,null,null,null,null,null,null,""]
[null,null,null,null,null,null,null,null,null,null,null,null,null,null,null,null,null,null,null,null,null,null,null,null,null,null,null,null,null,null,null,null,null,null,null,null,null,null,null,null,""]
[null,null,null,null,null,null,null,null,null,null,null,null,null,null,null,null,null,null,null,null,null,null,null,null,null,null,null,null,null,null,null,null,null,null,null,null,null,null,null,null,""]
[null,null,null,null,null,null,null,null,null,null,null,null,null,null,null,null,null,null,null,null,null,null,null,null,null,null,null,null,null,null,null,null,null,null,null,null,null,null,null,null,""]
[null,null,null,null,null,null,null,null,null,null,null,null,null,null,null,null,null,null,null,null,null,null,null,null,null,null,null,null,null,null,null,null,null,null,null,null,null,null,null,null,""]
[null,null,null,null,null,null,null,null,null,null,null,null,null,null,null,null,null,null,null,null,null,null,null,null,null,null,null,null,null,null,null,null,null,null,null,null,null,null,null,null,""]
[null,null,null,null,null,null,null,null,null,null,null,null,null,null,null,null,null,null,null,null,null,null,null,null,null,null,null,null,null,null,null,null,null,null,null,null,null,null,null,null,""]
[null,null,null,null,null,null,null,null,null,null,null,null,null,null,null,null,null,null,null,null,null,null,null,null,null,null,null,null,null,null,null,null,null,null,null,null,null,null,null,null,""]
[null,null,null,null,null,null,null,null,null,null,null,null,null,null,null,null,null,null,null,null,null,null,null,null,null,null,null,null,null,null,null,null,null,null,null,null,null,null,null,null,""]
[null,null,null,null,null,null,null,null,null,null,null,null,null,null,null,null,null,null,null,null,null,null,null,null,null,null,null,null,null,null,null,null,null,null,null,null,null,null,null,null,""]
[null,null,null,null,null,null,null,null,null,null,null,null,null,null,null,null,null,null,null,null,null,null,null,null,null,null,null,null,null,null,null,null,null,null,null,null,null,null,null,null,""]
[null,null,null,null,null,null,null,null,null,null,null,null,null,null,null,null,null,null,null,null,null,null,null,null,null,null,null,null,null,null,null,null,null,null,null,null,null,null,null,null,""]
[null,null,null,null,null,null,null,null,null,null,null,null,null,null,null,null,null,null,null,null,null,null,null,null,null,null,null,null,null,null,null,null,null,null,null,null,null,null,null,null,""]
[null,null,null,null,null,null,null,null,null,null,null,null,null,null,null,null,null,null,null,null,null,null,null,null,null,null,null,null,null,null,null,null,null,null,null,null,null,null,null,null,""]
[null,null,null,null,null,null,null,null,null,null,null,null,null,null,null,null,null,null,null,null,null,null,null,null,null,null,null,null,null,null,null,null,null,null,null,null,null,null,null,null,""]
[null,null,null,null,null,null,null,null,null,null,null,null,null,null,null,null,null,null,null,null,null,null,null,null,null,null,null,null,null,null,null,null,null,null,null,null,null,null,null,null,""]
[null,null,null,null,null,null,null,null,null,null,null,null,null,null,null,null,null,null,null,null,null,null,null,null,null,null,null,null,null,null,null,null,null,null,null,null,null,null,null,null,""]
[null,null,null,null,null,null,null,null,null,null,null,null,null,null,null,null,null,null,null,null,null,null,null,null,null,null,null,null,null,null,null,null,null,null,null,null,null,null,null,null,""]
[null,null,null,null,null,null,null,null,null,null,null,null,null,null,null,null,null,null,null,null,null,null,null,null,null,null,null,null,null,null,null,null,null,null,null,null,null,null,null,null,""]
[null,null,null,null,null,null,null,null,null,null,null,null,null,null,null,null,null,null,null,null,null,null,null,null,null,null,null,null,null,null,null,null,null,null,null,null,null,null,null,null,""]
[null,null,null,null,null,null,null,null,null,null,null,null,null,null,null,null,null,null,null,null,null,null,null,null,null,null,null,null,null,null,null,null,null,null,null,null,null,null,null,null,""]
[null,null,null,null,null,null,null,null,null,null,null,null,null,null,null,null,null,null,null,null,null,null,null,null,null,null,null,null,null,null,null,null,null,null,null,null,null,null,null,null,""]
[null,null,null,null,null,null,null,null,null,null,null,null,null,null,null,null,null,null,null,null,null,null,null,null,null,null,null,null,null,null,null,null,null,null,null,null,null,null,null,null,""]
[null,null,null,null,null,null,null,null,null,null,null,null,null,null,null,null,null,null,null,null,null,null,null,null,null,null,null,null,null,null,null,null,null,null,null,null,null,null,null,null,""]
[null,null,null,null,null,null,null,null,null,null,null,null,null,null,null,null,null,null,null,null,null,null,null,null,null,null,null,null,null,null,null,null,null,null,null,null,null,null,null,null,""]
[null,null,null,null,null,null,null,null,null,null,null,null,null,null,null,null,null,null,null,null,null,null,null,null,null,null,null,null,null,null,null,null,null,null,null,null,null,null,null,null,""]
[null,null,null,null,null,null,null,null,null,null,null,null,null,null,null,null,null,null,null,null,null,null,null,null,null,null,null,null,null,null,null,null,null,null,null,null,null,null,null,null,""]
[null,null,null,null,null,null,null,null,null,null,null,null,null,null,null,null,null,null,null,null,null,null,null,null,null,null,null,null,null,null,null,null,null,null,null,null,null,null,null,null,""]
[null,null,null,null,null,null,null,null,null,null,null,null,null,null,null,null,null,null,null,null,null,null,null,null,null,null,null,null,null,null,null,null,null,null,null,null,null,null,null,null,""]
[null,null,null,null,null,null,null,null,null,null,null,null,null,null,null,null,null,null,null,null,null,null,null,null,null,null,null,null,null,null,null,null,null,null,null,null,null,null,null,null,""]
[null,null,null,null,null,null,null,null,null,null,null,null,null,null,null,null,null,null,null,null,null,null,null,null,null,null,null,null,null,null,null,null,null,null,null,null,null,null,null,null,""]
[null,null,null,null,null,null,null,null,null,null,null,null,null,null,null,null,null,null,null,null,null,null,null,null,null,null,null,null,null,null,null,null,null,null,null,null,null,null,null,null,""]
[null,null,null,null,null,null,null,null,null,null,null,null,null,null,null,null,null,null,null,null,null,null,null,null,null,null,null,null,null,null,null,null,null,null,null,null,null,null,null,null,""]
[null,null,null,null,null,null,null,null,null,null,null,null,null,null,null,null,null,null,null,null,null,null,null,null,null,null,null,null,null,null,null,null,null,null,null,null,null,null,null,null,""]
[null,null,null,null,null,null,null,null,null,null,null,null,null,null,null,null,null,null,null,null,null,null,null,null,null,null,null,null,null,null,null,null,null,null,null,null,null,null,null,null,""]
[null,null,null,null,null,null,null,null,null,null,null,null,null,null,null,null,null,null,null,null,null,null,null,null,null,null,null,null,null,null,null,null,null,null,null,null,null,null,null,null,""]
[null,null,null,null,null,null,null,null,null,null,null,null,null,null,null,null,null,null,null,null,null,null,null,null,null,null,null,null,null,null,null,null,null,null,null,null,null,null,null,null,""]

{"sheet":"Monster","index":2,"n_rows":25,"n_cols":19,"rows_kept":25,"cut":false,"hidden":false,"merged":[[2,1,2,3]]}
[]
[null,"HTML"]
[null,"<div class=\"reference-title\"><<1>></div>\n<table class=\"reference\">\n <tr>\n  <th>HP</th>\n  <td colspan=\"2\" style=\"text-align: right\"><<3>></td>\n  <th style=\"width: 140px\">SKILLS</th>\n </tr>\n <tr>\n  <th>攻</th>\n  <td colspan=\"2\" style=\"text-align: right;\"><<4>></td>\n  <td><<12>></td>\n </tr>\n <tr>\n  <th>防</th>\n  <td colspan=\"2\" style=\"text-align: right\"><<5>></td>\n  <td><<13>></td>\n </tr>\n <tr>\n  <th style=\"padding: 0px; width: 24px;\">\n   <svg xmlns=\"http://www.w3.org/2000/svg\" width=\"16\" height=\"16\">\n    <use x=\"0\" y=\"0\" xlink:href=\"#icon-slash\" />\n   </svg>\n  </th>\n  <th style=\"padding: 0px; width: 24px;\">\n   <svg xmlns=\"http://www.w3.org/2000/svg\" width=\"16\" height=\"16\">\n    <use x=\"0\" y=\"0\" xlink:href=\"#icon-stab\" />\n   </svg>\n  </th>\n  <th style=\"padding: 0px; width: 24px;\">\n   <svg xmlns=\"http://www.w3.org/2000/svg\" width=\"16\" height=\"16\">\n    <use x=\"0\" y=\"0\" xlink:href=\"#icon-bash\" />\n   </svg>\n  </th>\n  <td><<14>></td>\n </tr>\n <tr>\n  <td style=\"text-align: center;\"><<6>></td>\n  <td style=\"text-align: center;\"><<7>></td>\n  <td style=\"text-align: center;\"><<8>></td>\n  <th>ITEMS</th>\n </tr>\n <tr>\n  <th style=\"padding: 0px; width: 16px;\">\n   <svg xmlns=\"http://www.w3.org/2000/svg\" width=\"16\" height=\"16\">\n    <use x=\"0\" y=\"0\" xlink:href=\"#icon-fire\" />\n   </svg>\n  </th>\n  <th style=\"padding: 0px; width: 16px;\">\n   <svg xmlns=\"http://www.w3.org/2000/svg\" width=\"16\" height=\"16\">\n    <use x=\"0\" y=\"0\" xlink:href=\"#icon-ice\" />\n   </svg>\n  </th>\n  <th style=\"padding: 0px; width: 16px;\">\n   <svg xmlns=\"http://www.w3.org/2000/svg\" width=\"16\" height=\"16\">\n    <use x=\"0\" y=\"0\" xlink:href=\"#icon-thunder\" />\n   </svg>\n  </th>\n  <td><<15>></td>\n </tr>\n <tr>\n  <td style=\"text-align: center;\"><<9>></td>\n  <td style=\"text-align: center;\"><<10>></td>\n  <td style=\"text-align: center;\"><<11>></td>\n  <td><<16>></td>\n </tr>\n <tr>\n  <td colspan=\"3\">&nbsp;</td>\n  <td><<17>></td>\n <tr>\n  <th colspan=\"4\">メモ</th>\n </tr>\n <tr>\n  <td colspan=\"4\"><<2>></td>\n </tr>\n</table>"]
[]
[null,"ID","表示","メモ","HP","ATK","DEF","斬","突","壊","炎","氷","雷","SKILL1","SKILL2","SKILL3","ITEM1","ITEM2","ITEM3"]
[null,"グラスイーター",{"$f":"LIST_START","v":"グラスイーター"},"－",38,5,4,"－","－","－","－","－","－","飛び蹴り","－","－","飛蝗の脚","飛蝗の大顎","－"]
[null,"ボールアニマル",{"$f":"B7","v":"ボールアニマル"},"－",36,4,6,"耐","耐","耐","弱","弱","弱","体当たり","－","－","固い皮","球状の甲板","－"]
[null,"荒くれ狒狒","荒くれ狒狒","－",182,15,11,"－","－","－","－","－","－","打ちおろし","投げ飛ばし","－","狒狒の大骨","－","－"]
[null,"彷徨う狒狒","彷徨う狒狒","－",742,16,15,"－","－","－","－","－","－","打ちおろし","－","－","狒狒の獣皮","－","－"]
[null,"森の破壊者","森の破壊者","－",883,19,16,"－","－","－","弱","弱","弱","ベアクロー","－","－","熊の爪","－","－"]
[null,"狂乱の幼鹿","狂乱の幼鹿","２体とも倒すと入口付近に<a>狂乱の角鹿</a>が出現する。",248,12,9,"弱","弱","弱","弱","－","弱","踏みつけ","－","－","幼鹿の毛皮","幼鹿の蹄","－"]
[null,"狂乱の角鹿","狂乱の角鹿","移動速度が冒険者の２倍",784,18,17,"－","－","－","弱","－","弱","踏みつけ","困惑の雄叫び","－","鹿の毛皮","－","－"]
[null,"デスストーカー",{"$f":"B13","v":"デスストーカー"},"－",123,14,13,"耐","耐","耐","－","弱","－","痺れ突き","－","－","紫の尾針","－","－"]
[null,"血の裂断者",{"$f":"B14","v":"血の裂断者"},"－",1171,22,17,"－","－","－","弱","弱","弱","ベアクロー","破壊の一撃","－","切り裂き爪","－","－"]
[null,null,0,"－",null,null,null,"－","－","－","－","－","－",null,"－","－",null,"－","－"]
[null,null,0,"－",null,null,null,"－","－","－","－","－","－",null,"－","－",null,"－","－"]
[null,null,0,"－",null,null,null,"－","－","－","－","－","－",null,"－","－",null,"－","－"]
[null,null,0,"－",null,null,null,"－","－","－","－","－","－",null,"－","－",null,"－","－"]
[null,null,0,"－",null,null,null,"－","－","－","－","－","－",null,"－","－",null,"－","－"]
[null,null,0,"－",null,null,null,"－","－","－","－","－","－",null,"－","－",null,"－","－"]
[null,null,0,"－",null,null,null,"－","－","－","－","－","－",null,"－","－",null,"－","－"]
[null,null,0,"－",null,null,null,"－","－","－","－","－","－",null,"－","－",null,"－","－"]
[null,null,0,"－",null,null,null,"－","－","－","－","－","－",null,"－","－",null,"－","－"]
[null,null,0,"－",null,null,null,"－","－","－","－","－","－",null,"－","－",null,"－","－"]
[null,null,0,"－",null,null,null,"－","－","－","－","－","－",null,"－","－",null,"－","－"]

{"sheet":"a1","index":3,"n_rows":120,"n_cols":51,"rows_kept":120,"cut":false,"hidden":false,"merged":[[29,2,33,2],[0,30,1,33],[2,3,2,27],[2,28,2,37],[3,3,3,7],[3,8,3,12],[3,13,3,17],[3,18,3,22],[3,23,3,27],[3,28,3,32],[3,33,3,37],[4,2,8,2],[9,2,13,2],[14,2,18,2],[19,2,23,2],[24,2,28,2]]}
[null,null,null,null,null,null,null,null,null,null,null,null,null,null,null,null,null,null,null,null,null,null,null,null,null,null,null,null,null,null,"パレット"]
[null,null,null,null,null,null,null,null,null,null,null,null,null,null,null,null,null,null,null,null,null,null,null,null,null,null,null,null,null,null,null,null,null,null,null,null,null,null,null,null,null,null,null,null,null,"[C-2](a-4)"]
["ツールバー",null,null,"森の廃坑 ",null,null,null,null,null,null,null,null,null,null,null,null,null,null,null,null,null,null,null,null,null,null,null,null,"森の廃坑",null,null,null,null,null,null,null,null,null,null,"アイコン",null,null,null,null,null,"図形"]
[null,null,null,1,null,null,null,null,2,null,null,null,null,3,null,null,null,null,4,null,null,null,null,5,null,null,null,null,6,null,null,null,null,7,null,null,null,null,null,"座標","アイコン","レイヤー","吹き出しの向き","テキスト",null,"座標","図形","レイヤー","色","X","Y"]
[null,null,"A",null,null,null,null,null,null,null,null,null,null,null,null,null,null,null,null,null,null,null,null,null,null,null,null,null,null,null,null,null,null,null,null,null,null,null,null,"[A-1](b-3)","感嘆符","イベント等","↖","メディカ",null,"[A-2](b-2)","矢印","Ｆ．Ｏ．Ｅ","#ff0000",5,0]
[null,null,null,null,null,"！",null,null,null,null,null,null,"Fr",null,null,null,"宝",null,null,null,null,null,null,null,null,null,null,null,null,null,null,null,null,null,null,null,null,null,null,"[A-2](b-5)","F.O.E(右)","Ｆ．Ｏ．Ｅ","↗","<a>彷徨う狒狒</a>",null,"[A-3](b-2)","矢印","Ｆ．Ｏ．Ｅ","#ff0000",0,2]
[null,null,null,null,null,null,null,null,null,null,null,null,null,null,null,null,null,null,null,null,null,null,null,null,null,null,null,null,null,null,null,null,null,null,null,null,null,null,null,"[A-3](b-4)","宝箱","宝箱・採集ポイント","↗","メディカ",null,"[A-3](d-2)","矢印","Ｆ．Ｏ．Ｅ","#ff0000",-5,0]
[null,null,null,null,null,null,"扉",null,null,null,"掘","Fl",null,null,null,null,null,null,null,null,null,null,null,null,null,null,null,null,null,null,null,null,null,null,null,null,null,null,null,"[A-1](d-4)","扉",null,null,null,null,"[A-2](d-2)","矢印","Ｆ．Ｏ．Ｅ","#ff0000",0,-2]
[null,null,null,null,null,null,null,null,null,null,null,null,null,null,null,null,"↑↓",null,null,null,null,null,null,null,null,null,null,null,null,null,null,null,null,null,null,null,null,null,null,"[A-2](d-3)","つるはし","宝箱・採集ポイント","↖","３回\n・スレート石\n・虹翼の欠片",null,"[B-1](d-4)","矢印","Ｆ．Ｏ．Ｅ","#ff0000",0,-1]
[null,null,"B",null,null,null,null,"←→",null,null,null,null,null,null,null,null,null,null,null,null,null,null,null,null,null,null,null,null,null,null,null,null,null,null,null,null,null,null,null,"[A-2](d-4)","F.O.E(左)","Ｆ．Ｏ．Ｅ","↘","<a>彷徨う狒狒</a>",null,"[B-1](d-4)","矢印","Ｆ．Ｏ．Ｅ","#ff0000",0,5]
[null,null,null,null,null,null,null,null,null,null,null,null,null,null,null,null,null,null,null,null,null,null,null,null,null,null,null,null,null,null,null,null,null,null,null,null,null,null,null,"[A-3](e-4)","矢印(上下)"]
[null,null,null,null,null,null,null,"→",null,null,null,null,"Ｅ",null,null,null,null,null,null,null,null,null,null,null,null,null,null,null,null,null,null,null,null,null,null,null,null,null,null,"[B-1](a-5)","矢印(左右)"]
[null,null,null,null,null,null,"Fd",null,null,null,null,null,null,null,null,null,null,null,null,null,null,null,null,null,null,null,null,null,null,null,null,null,null,null,null,null,null,null,null,"[B-1](c-5)","矢印(右)"]
[null,null,null,null,null,null,null,null,null,null,null,null,null,null,null,null,null,null,null,null,null,null,null,null,null,null,null,null,null,null,null,null,null,null,null,null,null,null,null,"[B-2](c-5)","イベント","イベント等","↖","樹海の地図"]
[null,null,"C",null,null,null,null,null,null,null,null,null,null,null,null,null,null,null,null,null,null,null,null,null,null,null,null,null,null,null,null,null,null,null,null,null,null,null,null,"[B-1](d-4)","F.O.E(下)","Ｆ．Ｏ．Ｅ","↖","<a>彷徨う狒狒</a>"]
[null,null,null,null,null,null,null,null,null,null,null,null,null,null,null,null,null,null,null,null,null,null,null,null,null,null,null,null,null,null,null,null,null,null,null,null,null,null,null,"[C-2](c-5)","看板"]
[null,null,null,null,null,null,null,null,null,null,null,null,"看",null,null,null,null,null,null,null,null,null,null,null,null,null,null,null,null,null,null,null,null,null,null,null,null,null,null,"[C-1](d-2)","感嘆符","イベント等","↖","全員ＨＰ＋１５\n⇒<a>グラスイーター</a>×４と戦闘"]
[null,null,null,null,"！",null,null,null,null,null,null,null,null,null,null,"球",null,null,null,null,null,null,null,null,null,null,null,null,null,null,null,null,null,null,null,null,null,null,null,"[C-3](d-3)","気球"]
[null,null,null,null,null,null,null,null,null,null,null,null,null,null,null,null,null,null,null,null,null,null,null,null,null,null,null,null,null,null,null,null,null,null,null,null,null,null,null,null,""]
[null,null,"D",null,null,null,null,null,null,null,null,null,null,null,null,null,null,null,null,null,null,null,null,null,null,null,null,null,null,null,null,null,null,null,null,null,null,null,null,null,""]
[null,null,null,null,null,null,null,null,null,null,null,null,null,null,null,null,null,null,null,null,null,null,null,null,null,null,null,null,null,null,null,null,null,null,null,null,null,null,null,null,""]
[null,null,null,null,null,null,null,null,null,null,null,null,null,null,null,null,null,null,null,null,null,null,null,null,null,null,null,null,null,null,null,null,null,null,null,null,null,null,null,null,""]
[null,null,null,null,null,null,null,null,null,null,null,null,null,null,null,null,null,null,null,null,null,null,null,null,null,null,null,null,null,null,null,null,null,null,null,null,null,null,null,null,""]
[null,null,null,null,null,null,null,null,null,null,null,null,null,null,null,null,null,null,null,null,null,null,null,null,null,null,null,null,null,null,null,null,null,null,null,null,null,null,null,null,""]
[null,null,"E",null,null,null,null,null,null,null,null,null,null,null,null,null,null,null,null,null,null,null,null,null,null,null,null,null,null,null,null,null,null,null,null,null,null,null,null,null,""]
[null,null,null,null,null,null,null,null,null,null,null,null,null,null,null,null,null,null,null,null,null,null,null,null,null,null,null,null,null,null,null,null,null,null,null,null,null,null,null,null,""]
[null,null,null,null,null,null,null,null,null,null,null,null,null,null,null,null,null,null,null,null,null,null,null,null,null,null,null,null,null,null,null,null,null,null,null,null,null,null,null,null,""]
[null,null,null,null,null,null,null,null,null,null,null,null,null,null,null,null,null,null,null,null,null,null,null,null,null,null,null,null,null,null,null,null,null,null,null,null,null,null,null,null,""]
[null,null,null,null,null,null,null,null,null,null,null,null,null,null,null,null,null,null,null,null,null,null,null,null,null,null,null,null,null,null,null,null,null,null,null,null,null,null,null,null,""]
[null,null,"F",null,null,null,null,null,null,null,null,null,null,null,null,null,null,null,null,null,null,null,null,null,null,null,null,null,null,null,null,null,null,null,null,null,null,null,null,null,""]
[null,null,null,null,null,null,null,null,null,null,null,null,null,null,null,null,null,null,null,null,null,null,null,null,null,null,null,null,null,null,null,null,null,null,null,null,null,null,null,null,""]
[null,null,null,null,null,null,null,null,null,null,null,null,null,null,null,null,null,null,null,null,null,null,null,null,null,null,null,null,null,null,null,null,null,null,null,null,null,null,null,null,""]
[null,null,null,null,null,null,null,null,null,null,null,null,null,null,null,null,null,null,null,null,null,null,null,null,null,null,null,null,null,null,null,null,null,null,null,null,null,null,null,null,""]
[null,null,null,null,null,null,null,null,null,null,null,null,null,null,null,null,null,null,null,null,null,null,null,null,null,null,null,null,null,null,null,null,null,null,null,null,null,null,null,null,""]
[null,null,null,null,null,null,null,null,null,null,null,null,null,null,null,null,null,null,null,null,null,null,null,null,null,null,null,null,null,null,null,null,null,null,null,null,null,null,null,null,""]
[null,null,null,null,null,null,null,null,null,null,null,null,null,null,null,null,null,null,null,null,null,null,null,null,null,null,null,null,null,null,null,null,null,null,null,null,null,null,null,null,""]
[null,null,null,null,null,null,null,null,null,null,null,null,null,null,null,null,null,null,null,null,null,null,null,null,null,null,null,null,null,null,null,null,null,null,null,null,null,null,null,null,""]
[null,null,null,null,null,null,null,null,null,null,null,null,null,null,null,null,null,null,null,null,null,null,null,null,null,null,null,null,null,null,null,null,null,null,null,null,null,null,null,null,""]
[null,null,null,null,null,null,null,null,null,null,null,null,null,null,null,null,null,null,null,null,null,null,null,null,null,null,null,null,null,null,null,null,null,null,null,null,null,null,null,null,""]
[null,null,null,null,null,null,null,null,null,null,null,null,null,null,null,null,null,null,null,null,null,null,null,null,null,null,null,null,null,null,null,null,null,null,null,null,null,null,null,null,""]
[null,null,null,null,null,null,null,null,null,null,null,null,null,null,null,null,null,null,null,null,null,null,null,null,null,null,null,null,null,null,null,null,null,null,null,null,null,null,null,null,""]
[null,null,null,null,null,null,null,null,null,null,null,null,null,null,null,null,null,null,null,null,null,null,null,null,null,null,null,null,null,null,null,null,null,null,null,null,null,null,null,null,""]
[null,null,null,null,null,null,null,null,null,null,null,null,null,null,null,null,null,null,null,null,null,null,null,null,null,null,null,null,null,null,null,null,null,null,null,null,null,null,null,null,""]
[null,null,null,null,null,null,null,null,null,null,null,null,null,null,null,null,null,null,null,null,null,null,null,null,null,null,null,null,null,null,null,null,null,null,null,null,null,null,null,null,""]
[null,null,null,null,null,null,null,null,null,null,null,null,null,null,null,null,null,null,null,null,null,null,null,null,null,null,null,null,null,null,null,null,null,null,null,null,null,null,null,null,""]
[null,null,null,null,null,null,null,null,null,null,null,null,null,null,null,null,null,null,null,null,null,null,null,null,null,null,null,null,null,null,null,null,null,null,null,null,null,null,null,null,""]
[null,null,null,null,null,null,null,null,null,null,null,null,null,null,null,null,null,null,null,null,null,null,null,null,null,null,null,null,null,null,null,null,null,null,null,null,null,null,null,null,""]
[null,null,null,null,null,null,null,null,null,null,null,null,null,null,null,null,null,null,null,null,null,null,null,null,null,null,null,null,null,null,null,null,null,null,null,null,null,null,null,null,""]
[null,null,null,null,null,null,null,null,null,null,null,null,null,null,null,null,null,null,null,null,null,null,null,null,null,null,null,null,null,null,null,null,null,null,null,null,null,null,null,null,""]
[null,null,null,null,null,null,null,null,null,null,null,null,null,null,null,null,null,null,null,null,null,null,null,null,null,null,null,null,null,null,null,null,null,null,null,null,null,null,null,null,""]
[null,null,null,null,null,null,null,null,null,null,null,null,null,null,null,null,null,null,null,null,null,null,null,null,null,null,null,null,null,null,null,null,null,null,null,null,null,null,null,null,""]
[null,null,null,null,null,null,null,null,null,null,null,null,null,null,null,null,null,null,null,null,null,null,null,null,null,null,null,null,null,null,null,null,null,null,null,null,null,null,null,null,""]
[null,null,null,null,null,null,null,null,null,null,null,null,null,null,null,null,null,null,null,null,null,null,null,null,null,null,null,null,null,null,null,null,null,null,null,null,null,null,null,null,""]
[null,null,null,null,null,null,null,null,null,null,null,null,null,null,null,null,null,null,null,null,null,null,null,null,null,null,null,null,null,null,null,null,null,null,null,null,null,null,null,null,""]
[null,null,null,null,null,null,null,null,null,null,null,null,null,null,null,null,null,null,null,null,null,null,null,null,null,null,null,null,null,null,null,null,null,null,null,null,null,null,null,null,""]
[null,null,null,null,null,null,null,null,null,null,null,null,null,null,null,null,null,null,null,null,null,null,null,null,null,null,null,null,null,null,null,null,null,null,null,null,null,null,null,null,""]
[null,null,null,null,null,null,null,null,null,null,null,null,null,null,null,null,null,null,null,null,null,null,null,null,null,null,null,null,null,null,null,null,null,null,null,null,null,null,null,null,""]
[null,null,null,null,null,null,null,null,null,null,null,null,null,null,null,null,null,null,null,null,null,null,null,null,null,null,null,null,null,null,null,null,null,null,null,null,null,null,null,null,""]
[null,null,null,null,null,null,null,null,null,null,null,null,null,null,null,null,null,null,null,null,null,null,null,null,null,null,null,null,null,null,null,null,null,null,null,null,null,null,null,null,""]
[null,null,null,null,null,null,null,null,null,null,null,null,null,null,null,null,null,null,null,null,null,null,null,null,null,null,null,null,null,null,null,null,null,null,null,null,null,null,null,null,""]
[null,null,null,null,null,null,null,null,null,null,null,null,null,null,null,null,null,null,null,null,null,null,null,null,null,null,null,null,null,null,null,null,null,null,null,null,null,null,null,null,""]
[null,null,null,null,null,null,null,null,null,null,null,null,null,null,null,null,null,null,null,null,null,null,null,null,null,null,null,null,null,null,null,null,null,null,null,null,null,null,null,null,""]
[null,null,null,null,null,null,null,null,null,null,null,null,null,null,null,null,null,null,null,null,null,null,null,null,null,null,null,null,null,null,null,null,null,null,null,null,null,null,null,null,""]
[null,null,null,null,null,null,null,null,null,null,null,null,null,null,null,null,null,null,null,null,null,null,null,null,null,null,null,null,null,null,null,null,null,null,null,null,null,null,null,null,""]
[null,null,null,null,null,null,null,null,null,null,null,null,null,null,null,null,null,null,null,null,null,null,null,null,null,null,null,null,null,null,null,null,null,null,null,null,null,null,null,null,""]
[null,null,null,null,null,null,null,null,null,null,null,null,null,null,null,null,null,null,null,null,null,null,null,null,null,null,null,null,null,null,null,null,null,null,null,null,null,null,null,null,""]
[null,null,null,null,null,null,null,null,null,null,null,null,null,null,null,null,null,null,null,null,null,null,null,null,null,null,null,null,null,null,null,null,null,null,null,null,null,null,null,null,""]
[null,null,null,null,null,null,null,null,null,null,null,null,null,null,null,null,null,null,null,null,null,null,null,null,null,null,null,null,null,null,null,null,null,null,null,null,null,null,null,null,""]
[null,null,null,null,null,null,null,null,null,null,null,null,null,null,null,null,null,null,null,null,null,null,null,null,null,null,null,null,null,null,null,null,null,null,null,null,null,null,null,null,""]
[null,null,null,null,null,null,null,null,null,null,null,null,null,null,null,null,null,null,null,null,null,null,null,null,null,null,null,null,null,null,null,null,null,null,null,null,null,null,null,null,""]
[null,null,null,null,null,null,null,null,null,null,null,null,null,null,null,null,null,null,null,null,null,null,null,null,null,null,null,null,null,null,null,null,null,null,null,null,null,null,null,null,""]
[null,null,null,null,null,null,null,null,null,null,null,null,null,null,null,null,null,null,null,null,null,null,null,null,null,null,null,null,null,null,null,null,null,null,null,null,null,null,null,null,""]
[null,null,null,null,null,null,null,null,null,null,null,null,null,null,null,null,null,null,null,null,null,null,null,null,null,null,null,null,null,null,null,null,null,null,null,null,null,null,null,null,""]
[null,null,null,null,null,null,null,null,null,null,null,null,null,null,null,null,null,null,null,null,null,null,null,null,null,null,null,null,null,null,null,null,null,null,null,null,null,null,null,null,""]
[null,null,null,null,null,null,null,null,null,null,null,null,null,null,null,null,null,null,null,null,null,null,null,null,null,null,null,null,null,null,null,null,null,null,null,null,null,null,null,null,""]
[null,null,null,null,null,null,null,null,null,null,null,null,null,null,null,null,null,null,null,null,null,null,null,null,null,null,null,null,null,null,null,null,null,null,null,null,null,null,null,null,""]
[null,null,null,null,null,null,null,null,null,null,null,null,null,null,null,null,null,null,null,null,null,null,null,null,null,null,null,null,null,null,null,null,null,null,null,null,null,null,null,null,""]
[null,null,null,null,null,null,null,null,null,null,null,null,null,null,null,null,null,null,null,null,null,null,null,null,null,null,null,null,null,null,null,null,null,null,null,null,null,null,null,null,""]
[null,null,null,null,null,null,null,null,null,null,null,null,null,null,null,null,null,null,null,null,null,null,null,null,null,null,null,null,null,null,null,null,null,null,null,null,null,null,null,null,""]
[null,null,null,null,null,null,null,null,null,null,null,null,null,null,null,null,null,null,null,null,null,null,null,null,null,null,null,null,null,null,null,null,null,null,null,null,null,null,null,null,""]
[null,null,null,null,null,null,null,null,null,null,null,null,null,null,null,null,null,null,null,null,null,null,null,null,null,null,null,null,null,null,null,null,null,null,null,null,null,null,null,null,""]
[null,null,null,null,null,null,null,null,null,null,null,null,null,null,null,null,null,null,null,null,null,null,null,null,null,null,null,null,null,null,null,null,null,null,null,null,null,null,null,null,""]
[null,null,null,null,null,null,null,null,null,null,null,null,null,null,null,null,null,null,null,null,null,null,null,null,null,null,null,null,null,null,null,null,null,null,null,null,null,null,null,null,""]
[null,null,null,null,null,null,null,null,null,null,null,null,null,null,null,null,null,null,null,null,null,null,null,null,null,null,null,null,null,null,null,null,null,null,null,null,null,null,null,null,""]
[null,null,null,null,null,null,null,null,null,null,null,null,null,null,null,null,null,null,null,null,null,null,null,null,null,null,null,null,null,null,null,null,null,null,null,null,null,null,null,null,""]
[null,null,null,null,null,null,null,null,null,null,null,null,null,null,null,null,null,null,null,null,null,null,null,null,null,null,null,null,null,null,null,null,null,null,null,null,null,null,null,null,""]
[null,null,null,null,null,null,null,null,null,null,null,null,null,null,null,null,null,null,null,null,null,null,null,null,null,null,null,null,null,null,null,null,null,null,null,null,null,null,null,null,""]
[null,null,null,null,null,null,null,null,null,null,null,null,null,null,null,null,null,null,null,null,null,null,null,null,null,null,null,null,null,null,null,null,null,null,null,null,null,null,null,null,""]
[null,null,null,null,null,null,null,null,null,null,null,null,null,null,null,null,null,null,null,null,null,null,null,null,null,null,null,null,null,null,null,null,null,null,null,null,null,null,null,null,""]
[null,null,null,null,null,null,null,null,null,null,null,null,null,null,null,null,null,null,null,null,null,null,null,null,null,null,null,null,null,null,null,null,null,null,null,null,null,null,null,null,""]
[null,null,null,null,null,null,null,null,null,null,null,null,null,null,null,null,null,null,null,null,null,null,null,null,null,null,null,null,null,null,null,null,null,null,null,null,null,null,null,null,""]
[null,null,null,null,null,null,null,null,null,null,null,null,null,null,null,null,null,null,null,null,null,null,null,null,null,null,null,null,null,null,null,null,null,null,null,null,null,null,null,null,""]
[null,null,null,null,null,null,null,null,null,null,null,null,null,null,null,null,null,null,null,null,null,null,null,null,null,null,null,null,null,null,null,null,null,null,null,null,null,null,null,null,""]
[null,null,null,null,null,null,null,null,null,null,null,null,null,null,null,null,null,null,null,null,null,null,null,null,null,null,null,null,null,null,null,null,null,null,null,null,null,null,null,null,""]
[null,null,null,null,null,null,null,null,null,null,null,null,null,null,null,null,null,null,null,null,null,null,null,null,null,null,null,null,null,null,null,null,null,null,null,null,null,null,null,null,""]
[null,null,null,null,null,null,null,null,null,null,null,null,null,null,null,null,null,null,null,null,null,null,null,null,null,null,null,null,null,null,null,null,null,null,null,null,null,null,null,null,""]
[null,null,null,null,null,null,null,null,null,null,null,null,null,null,null,null,null,null,null,null,null,null,null,null,null,null,null,null,null,null,null,null,null,null,null,null,null,null,null,null,""]
[null,null,null,null,null,null,null,null,null,null,null,null,null,null,null,null,null,null,null,null,null,null,null,null,null,null,null,null,null,null,null,null,null,null,null,null,null,null,null,null,""]
[null,null,null,null,null,null,null,null,null,null,null,null,null,null,null,null,null,null,null,null,null,null,null,null,null,null,null,null,null,null,null,null,null,null,null,null,null,null,null,null,""]
[null,null,null,null,null,null,null,null,null,null,null,null,null,null,null,null,null,null,null,null,null,null,null,null,null,null,null,null,null,null,null,null,null,null,null,null,null,null,null,null,""]
[null,null,null,null,null,null,null,null,null,null,null,null,null,null,null,null,null,null,null,null,null,null,null,null,null,null,null,null,null,null,null,null,null,null,null,null,null,null,null,null,""]
[null,null,null,null,null,null,null,null,null,null,null,null,null,null,null,null,null,null,null,null,null,null,null,null,null,null,null,null,null,null,null,null,null,null,null,null,null,null,null,null,""]
[null,null,null,null,null,null,null,null,null,null,null,null,null,null,null,null,null,null,null,null,null,null,null,null,null,null,null,null,null,null,null,null,null,null,null,null,null,null,null,null,""]
[null,null,null,null,null,null,null,null,null,null,null,null,null,null,null,null,null,null,null,null,null,null,null,null,null,null,null,null,null,null,null,null,null,null,null,null,null,null,null,null,""]
[null,null,null,null,null,null,null,null,null,null,null,null,null,null,null,null,null,null,null,null,null,null,null,null,null,null,null,null,null,null,null,null,null,null,null,null,null,null,null,null,""]
[null,null,null,null,null,null,null,null,null,null,null,null,null,null,null,null,null,null,null,null,null,null,null,null,null,null,null,null,null,null,null,null,null,null,null,null,null,null,null,null,""]
[null,null,null,null,null,null,null,null,null,null,null,null,null,null,null,null,null,null,null,null,null,null,null,null,null,null,null,null,null,null,null,null,null,null,null,null,null,null,null,null,""]
[null,null,null,null,null,null,null,null,null,null,null,null,null,null,null,null,null,null,null,null,null,null,null,null,null,null,null,null,null,null,null,null,null,null,null,null,null,null,null,null,""]
[null,null,null,null,null,null,null,null,null,null,null,null,null,null,null,null,null,null,null,null,null,null,null,null,null,null,null,null,null,null,null,null,null,null,null,null,null,null,null,null,""]
[null,null,null,null,null,null,null,null,null,null,null,null,null,null,null,null,null,null,null,null,null,null,null,null,null,null,null,null,null,null,null,null,null,null,null,null,null,null,null,null,""]
[null,null,null,null,null,null,null,null,null,null,null,null,null,null,null,null,null,null,null,null,null,null,null,null,null,null,null,null,null,null,null,null,null,null,null,null,null,null,null,null,""]
[null,null,null,null,null,null,null,null,null,null,null,null,null,null,null,null,null,null,null,null,null,null,null,null,null,null,null,null,null,null,null,null,null,null,null,null,null,null,null,null,""]
[null,null,null,null,null,null,null,null,null,null,null,null,null,null,null,null,null,null,null,null,null,null,null,null,null,null,null,null,null,null,null,null,null,null,null,null,null,null,null,null,""]
[null,null,null,null,null,null,null,null,null,null,null,null,null,null,null,null,null,null,null,null,null,null,null,null,null,null,null,null,null,null,null,null,null,null,null,null,null,null,null,null,""]
[null,null,null,null,null,null,null,null,null,null,null,null,null,null,null,null,null,null,null,null,null,null,null,null,null,null,null,null,null,null,null,null,null,null,null,null,null,null,null,null,""]
[null,null,null,null,null,null,null,null,null,null,null,null,null,null,null,null,null,null,null,null,null,null,null,null,null,null,null,null,null,null,null,null,null,null,null,null,null,null,null,null,""]
[null,null,null,null,null,null,null,null,null,null,null,null,null,null,null,null,null,null,null,null,null,null,null,null,null,null,null,null,null,null,null,null,null,null,null,null,null,null,null,null,""]
[null,null,null,null,null,null,null,null,null,null,null,null,null,null,null,null,null,null,null,null,null,null,null,null,null,null,null,null,null,null,null,null,null,null,null,null,null,null,null,null,""]
[null,null,null,null,null,null,null,null,null,null,null,null,null,null,null,null,null,null,null,null,null,null,null,null,null,null,null,null,null,null,null,null,null,null,null,null,null,null,null,null,""]
[null,null,null,null,null,null,null,null,null,null,null,null,null,null,null,null,null,null,null,null,null,null,null,null,null,null,null,null,null,null,null,null,null,null,null,null,null,null,null,null,""]

{"sheet":"A1F","index":4,"n_rows":120,"n_cols":51,"rows_kept":120,"cut":false,"hidden":false,"merged":[[29,2,33,2],[0,30,1,33],[2,3,2,27],[2,28,2,37],[3,3,3,7],[3,8,3,12],[3,13,3,17],[3,18,3,22],[3,23,3,27],[3,28,3,32],[3,33,3,37],[4,2,8,2],[9,2,13,2],[14,2,18,2],[19,2,23,2],[24,2,28,2]]}
[null,null,null,null,null,null,null,null,null,null,null,null,null,null,null,null,null,null,null,null,null,null,null,null,null,null,null,null,null,null,"パレット"]
[null,null,null,null,null,null,null,null,null,null,null,null,null,null,null,null,null,null,null,null,null,null,null,null,null,null,null,null,null,null,null,null,null,null,null,null,null,null,null,null,null,null,null,null,null,"[C-3](a-2)"]
["ツールバー",null,null,"碧照ノ樹海B1F",null,null,null,null,null,null,null,null,null,null,null,null,null,null,null,null,null,null,null,null,null,null,null,null,{"$f":"TITLE","v":"碧照ノ樹海B1F"},null,null,null,null,null,null,null,null,null,null,"アイコン",null,null,null,null,null,"図形"]
[null,null,null,1,null,null,null,null,2,null,null,null,null,3,null,null,null,null,4,null,null,null,null,5,null,null,null,null,6,null,null,null,null,7,null,null,null,null,null,"座標","アイコン","レイヤー","吹き出しの向き","テキスト",null,"座標","図形","レイヤー","色","X","Y"]
[null,null,"A",null,null,null,null,null,null,null,null,null,null,null,null,null,null,null,null,null,null,null,null,null,null,null,null,null,null,null,null,null,null,null,null,null,null,null,null,"[A-4](b-3)","宝箱","宝箱・採集ポイント","↖","マンゴーシュ",null,"[D-6](b-1)","四角形（塗）","Ｆ．Ｏ．Ｅ","rgba(255,0,0,0.5)",3,1]
[null,null,null,null,null,null,null,null,null,null,null,null,null,null,null,null,null,null,null,null,"宝",null,null,null,null,null,null,null,null,null,null,null,null,null,null,null,null,null,null,"[A-4](e-4)","手","宝箱・採集ポイント","↗","２回\n・樹海アロエ\n・クラントロ",null,"[C-3](a-2)","四角形（塗）","Ｆ．Ｏ．Ｅ","rgba(255,0,0,0.5)",1,2]
[null,null,null,null,null,null,null,null,null,null,null,null,null,null,null,null,null,null,null,null,null,null,null,null,null,null,null,null,null,null,null,null,null,null,null,null,null,null,null,"[B-4](a-2)","矢印(上下)"]
[null,null,null,null,null,null,null,null,null,null,null,null,null,null,null,null,null,null,null,null,null,null,null,null,null,null,null,null,null,null,null,null,null,null,null,null,null,null,null,"[B-4](b-4)","感嘆符","イベント等","↖","アイテム購入\n・アリアドネの糸：２５０エン\n・コピス：１０００エン\n※３回値切ると価格が１／１０になる"]
[null,null,null,null,null,null,null,null,null,null,null,null,null,null,null,null,null,null,null,null,null,"手",null,null,null,null,null,null,null,null,null,null,null,null,null,null,null,null,null,"[B-4](c-1)","手","宝箱・採集ポイント","↖","４回\n・樹海アロエ\n・小さな花"]
[null,null,"B",null,null,null,null,null,null,null,null,null,null,null,null,null,null,null,null,"↑↓",null,null,null,null,null,null,null,null,null,null,null,null,null,null,null,null,null,null,null,"[B-4](c-3)","矢印(左右)"]
[null,null,null,null,null,null,null,null,null,null,null,null,null,null,null,null,null,null,null,null,null,"！",null,null,null,null,null,null,null,null,null,null,null,null,null,null,null,null,null,"[B-3](d-2)","F.O.E(下)","Ｆ．Ｏ．Ｅ","↖","<a>森の破壊者</a>"]
[null,null,null,null,null,null,null,null,null,null,null,null,null,null,null,null,null,null,"手",null,"←→",null,null,null,null,null,null,null,null,null,null,null,null,null,null,null,null,null,null,"[C-5](a-2)","疑問符","クエスト・ミッション","↖","クエスト『荒くれ狒狒を倒して！』で\n<a>荒くれ狒狒</a>と戦闘"]
[null,null,null,null,null,null,null,null,null,null,null,null,null,null,"Fd",null,null,null,null,null,null,null,null,null,null,null,null,null,null,null,null,null,null,null,null,null,null,null,null,"[C-5](b-2)","感嘆符","イベント等","↖","木箱\nネクタル／アリアドネの糸を入れると\n翌日以降に来た時に\nアムリタ／メディカⅡ／テリアカαが\n入っていることがある"]
[null,null,null,null,null,null,null,null,null,null,null,null,null,null,null,null,null,null,null,null,null,null,null,null,null,null,null,null,null,null,null,null,null,null,null,null,null,null,null,"[C-5](c-4)","矢印(上下)"]
[null,null,"C",null,null,null,null,null,null,null,null,null,null,null,null,null,null,null,null,null,null,null,null,null,"？",null,null,null,null,null,null,null,null,null,null,null,null,null,null,"[C-6](c-4)","扉"]
[null,null,null,null,null,null,null,null,null,null,null,null,null,null,null,null,null,null,null,null,null,null,null,null,"！",null,null,null,null,null,null,null,null,null,null,null,null,null,null,"[C-4](d-5)","イベント","イベント等","↙","<a>ボールアニマル</a>×２と戦闘\n※敵の片方は稀少種"]
[null,null,null,null,null,null,null,null,null,null,null,null,null,null,null,null,null,null,null,null,null,null,null,null,null,null,"↑↓",null,null,null,null,"扉",null,null,null,null,null,null,null,"[D-5](a-1)","扉"]
[null,null,null,null,null,null,null,null,null,null,null,null,null,null,null,null,null,null,null,null,null,null,"Ｅ",null,null,null,null,null,null,null,null,null,null,null,null,null,null,null,null,"[D-5](b-3)","手","宝箱・採集ポイント","↗","３回\n・樹海アロエ\n・小さな花"]
[null,null,null,null,null,null,null,null,null,null,null,null,null,null,null,null,null,null,null,null,null,null,null,null,null,null,null,null,null,null,null,null,null,null,null,null,null,null,null,"[D-6](b-4)","F.O.E(左)","Ｆ．Ｏ．Ｅ","↗","<a>森の破壊者</a>"]
[null,null,"D",null,null,null,null,null,null,null,null,null,null,null,null,null,null,null,null,null,null,null,null,"扉",null,null,null,null,null,null,null,null,null,null,null,null,null,null,null,"[D-4](c-4)","扉"]
[null,null,null,null,null,null,null,null,null,null,null,null,null,null,null,null,null,null,null,null,null,null,null,null,null,"手",null,null,null,null,null,"Fl",null,null,null,null,null,null,null,"[D-6](c-1)","扉"]
[null,null,null,null,null,null,null,null,null,null,null,null,null,null,null,null,null,null,null,null,null,"扉",null,null,null,null,null,null,"扉",null,null,null,null,null,null,null,null,null,null,"[D-5](d-3)","矢印(上下)"]
[null,null,null,null,null,null,null,null,null,null,null,null,null,null,null,null,null,null,null,null,null,null,null,null,null,"↑↓",null,null,null,null,null,"下",null,null,null,null,null,null,null,"[D-6](d-4)","下り階段"]
[null,null,null,null,null,null,null,null,null,null,null,null,null,null,null,null,null,null,null,null,null,null,null,null,null,null,null,null,null,null,null,null,null,null,null,null,null,null,null,"[E-6](a-4)","イベント","イベント等","↗","ワールウィンドと再会"]
[null,null,"E",null,null,null,null,null,null,null,null,null,null,null,null,null,null,null,null,null,null,null,null,null,null,null,null,null,null,null,null,"Ｅ",null,null,null,null,null,null,null,"[E-3](b-2)","扉"]
[null,null,null,null,null,null,null,null,null,null,null,null,null,null,"扉",null,null,null,null,null,null,null,null,null,null,null,"扉",null,null,null,null,null,null,null,null,null,null,null,null,"[E-5](b-4)","扉"]
[null,null,null,null,null,null,null,null,null,null,null,null,null,null,null,null,null,null,null,null,null,null,null,null,null,null,null,null,null,null,null,null,null,null,null,null,null,null,null,"[E-3](d-3)","磁軸"]
[null,null,null,null,null,null,null,null,null,null,null,null,null,null,null,"軸",null,null,null,null,null,null,null,null,null,null,null,null,null,null,null,null,null,null,null,null,null,null,null,"[F-4](d-3)","気球"]
[null,null,null,null,null,null,null,null,null,null,null,null,null,null,null,null,null,null,null,null,null,null,null,null,null,null,null,null,null,null,null,null,null,null,null,null,null,null,null,null,""]
[null,null,"F",null,null,null,null,null,null,null,null,null,null,null,null,null,null,null,null,null,null,null,null,null,null,null,null,null,null,null,null,null,null,null,null,null,null,null,null,null,""]
[null,null,null,null,null,null,null,null,null,null,null,null,null,null,null,null,null,null,null,null,null,null,null,null,null,null,null,null,null,null,null,null,null,null,null,null,null,null,null,null,""]
[null,null,null,null,null,null,null,null,null,null,null,null,null,null,null,null,null,null,null,null,null,null,null,null,null,null,null,null,null,null,null,null,null,null,null,null,null,null,null,null,""]
[null,null,null,null,null,null,null,null,null,null,null,null,null,null,null,null,null,null,null,null,"球",null,null,null,null,null,null,null,null,null,null,null,null,null,null,null,null,null,null,null,""]
[null,null,null,null,null,null,null,null,null,null,null,null,null,null,null,null,null,null,null,null,null,null,null,null,null,null,null,null,null,null,null,null,null,null,null,null,null,null,null,null,""]
[null,null,null,null,null,null,null,null,null,null,null,null,null,null,null,null,null,null,null,null,null,null,null,null,null,null,null,null,null,null,null,null,null,null,null,null,null,null,null,null,""]
[null,null,null,null,null,null,null,null,null,null,null,null,null,null,null,null,null,null,null,null,null,null,null,null,null,null,null,null,null,null,null,null,null,null,null,null,null,null,null,null,""]
[null,null,null,null,null,null,null,null,null,null,null,null,null,null,null,null,null,null,null,null,null,null,null,null,null,null,null,null,null,null,null,null,null,null,null,null,null,null,null,null,""]
[null,null,null,null,null,null,null,null,null,null,null,null,null,null,null,null,null,null,null,null,null,null,null,null,null,null,null,null,null,null,null,null,null,null,null,null,null,null,null,null,""]
[null,null,null,null,null,null,null,null,null,null,null,null,null,null,null,null,null,null,null,null,null,null,null,null,null,null,null,null,null,null,null,null,null,null,null,null,null,null,null,null,""]
[null,null,null,null,null,null,null,null,null,null,null,null,null,null,null,null,null,null,null,null,null,null,null,null,null,null,null,null,null,null,null,null,null,null,null,null,null,null,null,null,""]
[null,null,null,null,null,null,null,null,null,null,null,null,null,null,null,null,null,null,null,null,null,null,null,null,null,null,null,null,null,null,null,null,null,null,null,null,null,null,null,null,""]
[null,null,null,null,null,null,null,null,null,null,null,null,null,null,null,null,null,null,null,null,null,null,null,null,null,null,null,null,null,null,null,null,null,null,null,null,null,null,null,null,""]
[null,null,null,null,null,null,null,null,null,null,null,null,null,null,null,null,null,null,null,null,null,null,null,null,null,null,null,null,null,null,null,null,null,null,null,null,null,null,null,null,""]
[null,null,null,null,null,null,null,null,null,null,null,null,null,null,null,null,null,null,null,null,null,null,null,null,null,null,null,null,null,null,null,null,null,null,null,null,null,null,null,null,""]
[null,null,null,null,null,null,null,null,null,null,null,null,null,null,null,null,null,null,null,null,null,null,null,null,null,null,null,null,null,null,null,null,null,null,null,null,null,null,null,null,""]
[null,null,null,null,null,null,null,null,null,null,null,null,null,null,null,null,null,null,null,null,null,null,null,null,null,null,null,null,null,null,null,null,null,null,null,null,null,null,null,null,""]
[null,null,null,null,null,null,null,null,null,null,null,null,null,null,null,null,null,null,null,null,null,null,null,null,null,null,null,null,null,null,null,null,null,null,null,null,null,null,null,null,""]
[null,null,null,null,null,null,null,null,null,null,null,null,null,null,null,null,null,null,null,null,null,null,null,null,null,null,null,null,null,null,null,null,null,null,null,null,null,null,null,null,""]
[null,null,null,null,null,null,null,null,null,null,null,null,null,null,null,null,null,null,null,null,null,null,null,null,null,null,null,null,null,null,null,null,null,null,null,null,null,null,null,null,""]
[null,null,null,null,null,null,null,null,null,null,null,null,null,null,null,null,null,null,null,null,null,null,null,null,null,null,null,null,null,null,null,null,null,null,null,null,null,null,null,null,""]
[null,null,null,null,null,null,null,null,null,null,null,null,null,null,null,null,null,null,null,null,null,null,null,null,null,null,null,null,null,null,null,null,null,null,null,null,null,null,null,null,""]
[null,null,null,null,null,null,null,null,null,null,null,null,null,null,null,null,null,null,null,null,null,null,null,null,null,null,null,null,null,null,null,null,null,null,null,null,null,null,null,null,""]
[null,null,null,null,null,null,null,null,null,null,null,null,null,null,null,null,null,null,null,null,null,null,null,null,null,null,null,null,null,null,null,null,null,null,null,null,null,null,null,null,""]
[null,null,null,null,null,null,null,null,null,null,null,null,null,null,null,null,null,null,null,null,null,null,null,null,null,null,null,null,null,null,null,null,null,null,null,null,null,null,null,null,""]
[null,null,null,null,null,null,null,null,null,null,null,null,null,null,null,null,null,null,null,null,null,null,null,null,null,null,null,null,null,null,null,null,null,null,null,null,null,null,null,null,""]
[null,null,null,null,null,null,null,null,null,null,null,null,null,null,null,null,null,null,null,null,null,null,null,null,null,null,null,null,null,null,null,null,null,null,null,null,null,null,null,null,""]
[null,null,null,null,null,null,null,null,null,null,null,null,null,null,null,null,null,null,null,null,null,null,null,null,null,null,null,null,null,null,null,null,null,null,null,null,null,null,null,null,""]
[null,null,null,null,null,null,null,null,null,null,null,null,null,null,null,null,null,null,null,null,null,null,null,null,null,null,null,null,null,null,null,null,null,null,null,null,null,null,null,null,""]
[null,null,null,null,null,null,null,null,null,null,null,null,null,null,null,null,null,null,null,null,null,null,null,null,null,null,null,null,null,null,null,null,null,null,null,null,null,null,null,null,""]
[null,null,null,null,null,null,null,null,null,null,null,null,null,null,null,null,null,null,null,null,null,null,null,null,null,null,null,null,null,null,null,null,null,null,null,null,null,null,null,null,""]
[null,null,null,null,null,null,null,null,null,null,null,null,null,null,null,null,null,null,null,null,null,null,null,null,null,null,null,null,null,null,null,null,null,null,null,null,null,null,null,null,""]
[null,null,null,null,null,null,null,null,null,null,null,null,null,null,null,null,null,null,null,null,null,null,null,null,null,null,null,null,null,null,null,null,null,null,null,null,null,null,null,null,""]
[null,null,null,null,null,null,null,null,null,null,null,null,null,null,null,null,null,null,null,null,null,null,null,null,null,null,null,null,null,null,null,null,null,null,null,null,null,null,null,null,""]
[null,null,null,null,null,null,null,null,null,null,null,null,null,null,null,null,null,null,null,null,null,null,null,null,null,null,null,null,null,null,null,null,null,null,null,null,null,null,null,null,""]
[null,null,null,null,null,null,null,null,null,null,null,null,null,null,null,null,null,null,null,null,null,null,null,null,null,null,null,null,null,null,null,null,null,null,null,null,null,null,null,null,""]
[null,null,null,null,null,null,null,null,null,null,null,null,null,null,null,null,null,null,null,null,null,null,null,null,null,null,null,null,null,null,null,null,null,null,null,null,null,null,null,null,""]
[null,null,null,null,null,null,null,null,null,null,null,null,null,null,null,null,null,null,null,null,null,null,null,null,null,null,null,null,null,null,null,null,null,null,null,null,null,null,null,null,""]
[null,null,null,null,null,null,null,null,null,null,null,null,null,null,null,null,null,null,null,null,null,null,null,null,null,null,null,null,null,null,null,null,null,null,null,null,null,null,null,null,""]
[null,null,null,null,null,null,null,null,null,null,null,null,null,null,null,null,null,null,null,null,null,null,null,null,null,null,null,null,null,null,null,null,null,null,null,null,null,null,null,null,""]
[null,null,null,null,null,null,null,null,null,null,null,null,null,null,null,null,null,null,null,null,null,null,null,null,null,null,null,null,null,null,null,null,null,null,null,null,null,null,null,null,""]
[null,null,null,null,null,null,null,null,null,null,null,null,null,null,null,null,null,null,null,null,null,null,null,null,null,null,null,null,null,null,null,null,null,null,null,null,null,null,null,null,""]
[null,null,null,null,null,null,null,null,null,null,null,null,null,null,null,null,null,null,null,null,null,null,null,null,null,null,null,null,null,null,null,null,null,null,null,null,null,null,null,null,""]
[null,null,null,null,null,null,null,null,null,null,null,null,null,null,null,null,null,null,null,null,null,null,null,null,null,null,null,null,null,null,null,null,null,null,null,null,null,null,null,null,""]
[null,null,null,null,null,null,null,null,null,null,null,null,null,null,null,null,null,null,null,null,null,null,null,null,null,null,null,null,null,null,null,null,null,null,null,null,null,null,null,null,""]
[null,null,null,null,null,null,null,null,null,null,null,null,null,null,null,null,null,null,null,null,null,null,null,null,null,null,null,null,null,null,null,null,null,null,null,null,null,null,null,null,""]
[null,null,null,null,null,null,null,null,null,null,null,null,null,null,null,null,null,null,null,null,null,null,null,null,null,null,null,null,null,null,null,null,null,null,null,null,null,null,null,null,""]
[null,null,null,null,null,null,null,null,null,null,null,null,null,null,null,null,null,null,null,null,null,null,null,null,null,null,null,null,null,null,null,null,null,null,null,null,null,null,null,null,""]
[null,null,null,null,null,null,null,null,null,null,null,null,null,null,null,null,null,null,null,null,null,null,null,null,null,null,null,null,null,null,null,null,null,null,null,null,null,null,null,null,""]
[null,null,null,null,null,null,null,null,null,null,null,null,null,null,null,null,null,null,null,null,null,null,null,null,null,null,null,null,null,null,null,null,null,null,null,null,null,null,null,null,""]
[null,null,null,null,null,null,null,null,null,null,null,null,null,null,null,null,null,null,null,null,null,null,null,null,null,null,null,null,null,null,null,null,null,null,null,null,null,null,null,null,""]
[null,null,null,null,null,null,null,null,null,null,null,null,null,null,null,null,null,null,null,null,null,null,null,null,null,null,null,null,null,null,null,null,null,null,null,null,null,null,null,null,""]
[null,null,null,null,null,null,null,null,null,null,null,null,null,null,null,null,null,null,null,null,null,null,null,null,null,null,null,null,null,null,null,null,null,null,null,null,null,null,null,null,""]
[null,null,null,null,null,null,null,null,null,null,null,null,null,null,null,null,null,null,null,null,null,null,null,null,null,null,null,null,null,null,null,null,null,null,null,null,null,null,null,null,""]
[null,null,null,null,null,null,null,null,null,null,null,null,null,null,null,null,null,null,null,null,null,null,null,null,null,null,null,null,null,null,null,null,null,null,null,null,null,null,null,null,""]
[null,null,null,null,null,null,null,null,null,null,null,null,null,null,null,null,null,null,null,null,null,null,null,null,null,null,null,null,null,null,null,null,null,null,null,null,null,null,null,null,""]
[null,null,null,null,null,null,null,null,null,null,null,null,null,null,null,null,null,null,null,null,null,null,null,null,null,null,null,null,null,null,null,null,null,null,null,null,null,null,null,null,""]
[null,null,null,null,null,null,null,null,null,null,null,null,null,null,null,null,null,null,null,null,null,null,null,null,null,null,null,null,null,null,null,null,null,null,null,null,null,null,null,null,""]
[null,null,null,null,null,null,null,null,null,null,null,null,null,null,null,null,null,null,null,null,null,null,null,null,null,null,null,null,null,null,null,null,null,null,null,null,null,null,null,null,""]
[null,null,null,null,null,null,null,null,null,null,null,null,null,null,null,null,null,null,null,null,null,null,null,null,null,null,null,null,null,null,null,null,null,null,null,null,null,null,null,null,""]
[null,null,null,null,null,null,null,null,null,null,null,null,null,null,null,null,null,null,null,null,null,null,null,null,null,null,null,null,null,null,null,null,null,null,null,null,null,null,null,null,""]
[null,null,null,null,null,null,null,null,null,null,null,null,null,null,null,null,null,null,null,null,null,null,null,null,null,null,null,null,null,null,null,null,null,null,null,null,null,null,null,null,""]
[null,null,null,null,null,null,null,null,null,null,null,null,null,null,null,null,null,null,null,null,null,null,null,null,null,null,null,null,null,null,null,null,null,null,null,null,null,null,null,null,""]
[null,null,null,null,null,null,null,null,null,null,null,null,null,null,null,null,null,null,null,null,null,null,null,null,null,null,null,null,null,null,null,null,null,null,null,null,null,null,null,null,""]
[null,null,null,null,null,null,null,null,null,null,null,null,null,null,null,null,null,null,null,null,null,null,null,null,null,null,null,null,null,null,null,null,null,null,null,null,null,null,null,null,""]
[null,null,null,null,null,null,null,null,null,null,null,null,null,null,null,null,null,null,null,null,null,null,null,null,null,null,null,null,null,null,null,null,null,null,null,null,null,null,null,null,""]
[null,null,null,null,null,null,null,null,null,null,null,null,null,null,null,null,null,null,null,null,null,null,null,null,null,null,null,null,null,null,null,null,null,null,null,null,null,null,null,null,""]
[null,null,null,null,null,null,null,null,null,null,null,null,null,null,null,null,null,null,null,null,null,null,null,null,null,null,null,null,null,null,null,null,null,null,null,null,null,null,null,null,""]
[null,null,null,null,null,null,null,null,null,null,null,null,null,null,null,null,null,null,null,null,null,null,null,null,null,null,null,null,null,null,null,null,null,null,null,null,null,null,null,null,""]
[null,null,null,null,null,null,null,null,null,null,null,null,null,null,null,null,null,null,null,null,null,null,null,null,null,null,null,null,null,null,null,null,null,null,null,null,null,null,null,null,""]
[null,null,null,null,null,null,null,null,null,null,null,null,null,null,null,null,null,null,null,null,null,null,null,null,null,null,null,null,null,null,null,null,null,null,null,null,null,null,null,null,""]
[null,null,null,null,null,null,null,null,null,null,null,null,null,null,null,null,null,null,null,null,null,null,null,null,null,null,null,null,null,null,null,null,null,null,null,null,null,null,null,null,""]
[null,null,null,null,null,null,null,null,null,null,null,null,null,null,null,null,null,null,null,null,null,null,null,null,null,null,null,null,null,null,null,null,null,null,null,null,null,null,null,null,""]
[null,null,null,null,null,null,null,null,null,null,null,null,null,null,null,null,null,null,null,null,null,null,null,null,null,null,null,null,null,null,null,null,null,null,null,null,null,null,null,null,""]
[null,null,null,null,null,null,null,null,null,null,null,null,null,null,null,null,null,null,null,null,null,null,null,null,null,null,null,null,null,null,null,null,null,null,null,null,null,null,null,null,""]
[null,null,null,null,null,null,null,null,null,null,null,null,null,null,null,null,null,null,null,null,null,null,null,null,null,null,null,null,null,null,null,null,null,null,null,null,null,null,null,null,""]
[null,null,null,null,null,null,null,null,null,null,null,null,null,null,null,null,null,null,null,null,null,null,null,null,null,null,null,null,null,null,null,null,null,null,null,null,null,null,null,null,""]
[null,null,null,null,null,null,null,null,null,null,null,null,null,null,null,null,null,null,null,null,null,null,null,null,null,null,null,null,null,null,null,null,null,null,null,null,null,null,null,null,""]
[null,null,null,null,null,null,null,null,null,null,null,null,null,null,null,null,null,null,null,null,null,null,null,null,null,null,null,null,null,null,null,null,null,null,null,null,null,null,null,null,""]
[null,null,null,null,null,null,null,null,null,null,null,null,null,null,null,null,null,null,null,null,null,null,null,null,null,null,null,null,null,null,null,null,null,null,null,null,null,null,null,null,""]
[null,null,null,null,null,null,null,null,null,null,null,null,null,null,null,null,null,null,null,null,null,null,null,null,null,null,null,null,null,null,null,null,null,null,null,null,null,null,null,null,""]
[null,null,null,null,null,null,null,null,null,null,null,null,null,null,null,null,null,null,null,null,null,null,null,null,null,null,null,null,null,null,null,null,null,null,null,null,null,null,null,null,""]
[null,null,null,null,null,null,null,null,null,null,null,null,null,null,null,null,null,null,null,null,null,null,null,null,null,null,null,null,null,null,null,null,null,null,null,null,null,null,null,null,""]
[null,null,null,null,null,null,null,null,null,null,null,null,null,null,null,null,null,null,null,null,null,null,null,null,null,null,null,null,null,null,null,null,null,null,null,null,null,null,null,null,""]
[null,null,null,null,null,null,null,null,null,null,null,null,null,null,null,null,null,null,null,null,null,null,null,null,null,null,null,null,null,null,null,null,null,null,null,null,null,null,null,null,""]
[null,null,null,null,null,null,null,null,null,null,null,null,null,null,null,null,null,null,null,null,null,null,null,null,null,null,null,null,null,null,null,null,null,null,null,null,null,null,null,null,""]
[null,null,null,null,null,null,null,null,null,null,null,null,null,null,null,null,null,null,null,null,null,null,null,null,null,null,null,null,null,null,null,null,null,null,null,null,null,null,null,null,""]
[null,null,null,null,null,null,null,null,null,null,null,null,null,null,null,null,null,null,null,null,null,null,null,null,null,null,null,null,null,null,null,null,null,null,null,null,null,null,null,null,""]
[null,null,null,null,null,null,null,null,null,null,null,null,null,null,null,null,null,null,null,null,null,null,null,null,null,null,null,null,null,null,null,null,null,null,null,null,null,null,null,null,""]
[null,null,null,null,null,null,null,null,null,null,null,null,null,null,null,null,null,null,null,null,null,null,null,null,null,null,null,null,null,null,null,null,null,null,null,null,null,null,null,null,""]
[null,null,null,null,null,null,null,null,null,null,null,null,null,null,null,null,null,null,null,null,null,null,null,null,null,null,null,null,null,null,null,null,null,null,null,null,null,null,null,null,""]

{"sheet":"a2","index":5,"n_rows":120,"n_cols":51,"rows_kept":120,"cut":false,"hidden":false,"merged":[[29,2,33,2],[0,30,1,33],[2,3,2,27],[2,28,2,37],[3,3,3,7],[3,8,3,12],[3,13,3,17],[3,18,3,22],[3,23,3,27],[3,28,3,32],[3,33,3,37],[4,2,8,2],[9,2,13,2],[14,2,18,2],[19,2,23,2],[24,2,28,2]]}
[null,null,null,null,null,null,null,null,null,null,null,null,null,null,null,null,null,null,null,null,null,null,null,null,null,null,null,null,null,null,"パレット"]
[null,null,null,null,null,null,null,null,null,null,null,null,null,null,null,null,null,null,null,null,null,null,null,null,null,null,null,null,null,null,null,null,null,null,null,null,null,null,null,null,null,null,null,null,null,"[A-1](d-4)"]
["ツールバー",null,null,"小さな果樹林",null,null,null,null,null,null,null,null,null,null,null,null,null,null,null,null,null,null,null,null,null,null,null,null,{"$f":"TITLE","v":"小さな果樹林"},null,null,null,null,null,null,null,null,null,null,"アイコン",null,null,null,null,null,"図形"]
[null,null,null,1,null,null,null,null,2,null,null,null,null,3,null,null,null,null,4,null,null,null,null,5,null,null,null,null,6,null,null,null,null,7,null,null,null,null,null,"座標","アイコン","レイヤー","吹き出しの向き","テキスト",null,"座標","図形","レイヤー","色","X","Y"]
[null,null,"A",null,null,null,null,null,null,null,null,null,null,null,null,null,null,null,null,null,null,null,null,null,null,null,null,null,null,null,null,null,null,null,null,null,null,null,null,"[A-1](b-2)","手","宝箱・採集ポイント","↖","３回\n・シアの実\n・竜血樹脂",null,"[A-2](b-1)","矢印","Ｆ．Ｏ．Ｅ","#FF0000",-4,0]
[null,null,null,null,"手",null,null,"Fl",null,null,"扉",null,null,null,null,null,null,null,null,null,null,null,null,null,null,null,null,null,null,null,null,null,null,null,null,null,null,null,null,"[A-1](b-5)","F.O.E(左)","Ｆ．Ｏ．Ｅ","↖","<a>狂乱の幼鹿</a>",null,"[A-1](b-2)","矢印","Ｆ．Ｏ．Ｅ","#FF0000",0,3]
[null,null,null,null,null,null,null,null,null,null,null,null,null,"扉",null,null,null,null,null,null,null,null,null,null,null,null,null,null,null,null,null,null,null,null,null,null,null,null,null,"[A-2](b-3)","扉",null,null,null,null,"[A-1](e-2)","矢印","Ｆ．Ｏ．Ｅ","#FF0000",4,0]
[null,null,null,null,null,null,"宝",null,null,null,null,null,null,null,null,null,null,null,null,null,null,null,null,null,null,null,null,null,null,null,null,null,null,null,null,null,null,null,null,"[A-3](c-1)","扉",null,null,null,null,"[A-2](e-1)","矢印","Ｆ．Ｏ．Ｅ","#FF0000",0,-3]
[null,null,null,null,null,null,null,null,null,null,null,null,null,null,"扉",null,null,null,null,null,null,null,null,null,null,null,null,null,null,null,null,null,null,null,null,null,null,null,null,"[A-1](d-4)","宝箱","宝箱・採集ポイント","↙","火炎のハンマー",null,"[B-3](e-2)","矢印","Ｆ．Ｏ．Ｅ","#FF0000",-4,0]
[null,null,"B",null,null,null,null,"↓",null,null,null,"↑",null,null,null,null,null,null,null,null,null,null,null,null,null,null,null,null,null,null,null,null,null,null,null,null,null,null,null,"[A-3](e-2)","扉",null,null,null,null,"[B-2](e-3)","矢印","Ｆ．Ｏ．Ｅ","#FF0000",0,-3]
[null,null,null,null,null,null,null,null,null,null,null,null,null,null,null,null,null,null,null,null,null,null,null,null,null,null,null,null,null,null,null,null,null,null,null,null,null,null,null,"[B-1](a-5)","矢印(下)",null,null,null,null,"[B-2](b-3)","矢印","Ｆ．Ｏ．Ｅ","#FF0000",4,0]
[null,null,null,null,null,"扉",null,null,null,null,null,null,null,null,null,null,null,null,null,null,null,null,null,null,null,null,null,null,null,null,null,null,null,null,null,null,null,null,null,"[B-2](a-4)","矢印(上)",null,null,null,null,"[B-3](b-2)","矢印","Ｆ．Ｏ．Ｅ","#FF0000",0,3]
[null,null,null,null,null,null,null,null,null,null,null,null,null,null,null,null,null,null,null,null,null,null,null,null,null,null,null,null,null,null,null,null,null,null,null,null,null,null,null,"[B-1](c-3)","扉"]
[null,null,null,null,null,null,null,null,"扉",null,null,null,"Fl",null,"手",null,null,null,null,null,null,null,null,null,null,null,null,null,null,null,null,null,null,null,null,null,null,null,null,"[B-2](e-1)","扉"]
[null,null,"C",null,null,null,null,null,null,null,null,null,null,null,null,null,null,null,null,null,null,null,null,null,null,null,null,null,null,null,null,null,null,null,null,null,null,null,null,"[B-2](e-5)","F.O.E(左)","Ｆ．Ｏ．Ｅ","↗","<a>狂乱の幼鹿</a>"]
[null,null,null,null,null,null,"Ｅ",null,null,null,null,null,null,null,"宝",null,null,null,null,null,null,null,null,null,null,null,null,null,null,null,null,null,null,null,null,null,null,null,null,"[B-3](e-2)","手","宝箱・採集ポイント","↗","３回\n・シアの実\n・竜血樹脂"]
[null,null,null,null,null,null,null,null,null,null,null,null,null,null,null,null,null,null,null,null,null,null,null,null,null,null,null,null,null,null,null,null,null,null,null,null,null,null,null,"[C-1](b-4)","イベント"]
[null,null,null,null,"球",null,null,null,null,null,null,null,null,null,null,null,null,null,null,null,null,null,null,null,null,null,null,null,null,null,null,null,null,null,null,null,null,null,null,"[C-3](b-2)","宝箱","宝箱・採集ポイント","↘","雷印の指輪"]
[null,null,null,null,null,null,null,null,null,null,null,null,null,null,null,null,null,null,null,null,null,null,null,null,null,null,null,null,null,null,null,null,null,null,null,null,null,null,null,"[C-1](d-2)","気球"]
[null,null,"D",null,null,null,null,null,null,null,null,null,null,null,null,null,null,null,null,null,null,null,null,null,null,null,null,null,null,null,null,null,null,null,null,null,null,null,null,null,""]
[null,null,null,null,null,null,null,null,null,null,null,null,null,null,null,null,null,null,null,null,null,null,null,null,null,null,null,null,null,null,null,null,null,null,null,null,null,null,null,null,""]
[null,null,null,null,null,null,null,null,null,null,null,null,null,null,null,null,null,null,null,null,null,null,null,null,null,null,null,null,null,null,null,null,null,null,null,null,null,null,null,null,""]
[null,null,null,null,null,null,null,null,null,null,null,null,null,null,null,null,null,null,null,null,null,null,null,null,null,null,null,null,null,null,null,null,null,null,null,null,null,null,null,null,""]
[null,null,null,null,null,null,null,null,null,null,null,null,null,null,null,null,null,null,null,null,null,null,null,null,null,null,null,null,null,null,null,null,null,null,null,null,null,null,null,null,""]
[null,null,"E",null,null,null,null,null,null,null,null,null,null,null,null,null,null,null,null,null,null,null,null,null,null,null,null,null,null,null,null,null,null,null,null,null,null,null,null,null,""]
[null,null,null,null,null,null,null,null,null,null,null,null,null,null,null,null,null,null,null,null,null,null,null,null,null,null,null,null,null,null,null,null,null,null,null,null,null,null,null,null,""]
[null,null,null,null,null,null,null,null,null,null,null,null,null,null,null,null,null,null,null,null,null,null,null,null,null,null,null,null,null,null,null,null,null,null,null,null,null,null,null,null,""]
[null,null,null,null,null,null,null,null,null,null,null,null,null,null,null,null,null,null,null,null,null,null,null,null,null,null,null,null,null,null,null,null,null,null,null,null,null,null,null,null,""]
[null,null,null,null,null,null,null,null,null,null,null,null,null,null,null,null,null,null,null,null,null,null,null,null,null,null,null,null,null,null,null,null,null,null,null,null,null,null,null,null,""]
[null,null,"F",null,null,null,null,null,null,null,null,null,null,null,null,null,null,null,null,null,null,null,null,null,null,null,null,null,null,null,null,null,null,null,null,null,null,null,null,null,""]
[null,null,null,null,null,null,null,null,null,null,null,null,null,null,null,null,null,null,null,null,null,null,null,null,null,null,null,null,null,null,null,null,null,null,null,null,null,null,null,null,""]
[null,null,null,null,null,null,null,null,null,null,null,null,null,null,null,null,null,null,null,null,null,null,null,null,null,null,null,null,null,null,null,null,null,null,null,null,null,null,null,null,""]
[null,null,null,null,null,null,null,null,null,null,null,null,null,null,null,null,null,null,null,null,null,null,null,null,null,null,null,null,null,null,null,null,null,null,null,null,null,null,null,null,""]
[null,null,null,null,null,null,null,null,null,null,null,null,null,null,null,null,null,null,null,null,null,null,null,null,null,null,null,null,null,null,null,null,null,null,null,null,null,null,null,null,""]
[null,null,null,null,null,null,null,null,null,null,null,null,null,null,null,null,null,null,null,null,null,null,null,null,null,null,null,null,null,null,null,null,null,null,null,null,null,null,null,null,""]
[null,null,null,null,null,null,null,null,null,null,null,null,null,null,null,null,null,null,null,null,null,null,null,null,null,null,null,null,null,null,null,null,null,null,null,null,null,null,null,null,""]
[null,null,null,null,null,null,null,null,null,null,null,null,null,null,null,null,null,null,null,null,null,null,null,null,null,null,null,null,null,null,null,null,null,null,null,null,null,null,null,null,""]
[null,null,null,null,null,null,null,null,null,null,null,null,null,null,null,null,null,null,null,null,null,null,null,null,null,null,null,null,null,null,null,null,null,null,null,null,null,null,null,null,""]
[null,null,null,null,null,null,null,null,null,null,null,null,null,null,null,null,null,null,null,null,null,null,null,null,null,null,null,null,null,null,null,null,null,null,null,null,null,null,null,null,""]
[null,null,null,null,null,null,null,null,null,null,null,null,null,null,null,null,null,null,null,null,null,null,null,null,null,null,null,null,null,null,null,null,null,null,null,null,null,null,null,null,""]
[null,null,null,null,null,null,null,null,null,null,null,null,null,null,null,null,null,null,null,null,null,null,null,null,null,null,null,null,null,null,null,null,null,null,null,null,null,null,null,null,""]
[null,null,null,null,null,null,null,null,null,null,null,null,null,null,null,null,null,null,null,null,null,null,null,null,null,null,null,null,null,null,null,null,null,null,null,null,null,null,null,null,""]
[null,null,null,null,null,null,null,null,null,null,null,null,null,null,null,null,null,null,null,null,null,null,null,null,null,null,null,null,null,null,null,null,null,null,null,null,null,null,null,null,""]
[null,null,null,null,null,null,null,null,null,null,null,null,null,null,null,null,null,null,null,null,null,null,null,null,null,null,null,null,null,null,null,null,null,null,null,null,null,null,null,null,""]
[null,null,null,null,null,null,null,null,null,null,null,null,null,null,null,null,null,null,null,null,null,null,null,null,null,null,null,null,null,null,null,null,null,null,null,null,null,null,null,null,""]
[null,null,null,null,null,null,null,null,null,null,null,null,null,null,null,null,null,null,null,null,null,null,null,null,null,null,null,null,null,null,null,null,null,null,null,null,null,null,null,null,""]
[null,null,null,null,null,null,null,null,null,null,null,null,null,null,null,null,null,null,null,null,null,null,null,null,null,null,null,null,null,null,null,null,null,null,null,null,null,null,null,null,""]
[null,null,null,null,null,null,null,null,null,null,null,null,null,null,null,null,null,null,null,null,null,null,null,null,null,null,null,null,null,null,null,null,null,null,null,null,null,null,null,null,""]
[null,null,null,null,null,null,null,null,null,null,null,null,null,null,null,null,null,null,null,null,null,null,null,null,null,null,null,null,null,null,null,null,null,null,null,null,null,null,null,null,""]
[null,null,null,null,null,null,null,null,null,null,null,null,null,null,null,null,null,null,null,null,null,null,null,null,null,null,null,null,null,null,null,null,null,null,null,null,null,null,null,null,""]
[null,null,null,null,null,null,null,null,null,null,null,null,null,null,null,null,null,null,null,null,null,null,null,null,null,null,null,null,null,null,null,null,null,null,null,null,null,null,null,null,""]
[null,null,null,null,null,null,null,null,null,null,null,null,null,null,null,null,null,null,null,null,null,null,null,null,null,null,null,null,null,null,null,null,null,null,null,null,null,null,null,null,""]
[null,null,null,null,null,null,null,null,null,null,null,null,null,null,null,null,null,null,null,null,null,null,null,null,null,null,null,null,null,null,null,null,null,null,null,null,null,null,null,null,""]
[null,null,null,null,null,null,null,null,null,null,null,null,null,null,null,null,null,null,null,null,null,null,null,null,null,null,null,null,null,null,null,null,null,null,null,null,null,null,null,null,""]
[null,null,null,null,null,null,null,null,null,null,null,null,null,null,null,null,null,null,null,null,null,null,null,null,null,null,null,null,null,null,null,null,null,null,null,null,null,null,null,null,""]
[null,null,null,null,null,null,null,null,null,null,null,null,null,null,null,null,null,null,null,null,null,null,null,null,null,null,null,null,null,null,null,null,null,null,null,null,null,null,null,null,""]
[null,null,null,null,null,null,null,null,null,null,null,null,null,null,null,null,null,null,null,null,null,null,null,null,null,null,null,null,null,null,null,null,null,null,null,null,null,null,null,null,""]
[null,null,null,null,null,null,null,null,null,null,null,null,null,null,null,null,null,null,null,null,null,null,null,null,null,null,null,null,null,null,null,null,null,null,null,null,null,null,null,null,""]
[null,null,null,null,null,null,null,null,null,null,null,null,null,null,null,null,null,null,null,null,null,null,null,null,null,null,null,null,null,null,null,null,null,null,null,null,null,null,null,null,""]
[null,null,null,null,null,null,null,null,null,null,null,null,null,null,null,null,null,null,null,null,null,null,null,null,null,null,null,null,null,null,null,null,null,null,null,null,null,null,null,null,""]
[null,null,null,null,null,null,null,null,null,null,null,null,null,null,null,null,null,null,null,null,null,null,null,null,null,null,null,null,null,null,null,null,null,null,null,null,null,null,null,null,""]
[null,null,null,null,null,null,null,null,null,null,null,null,null,null,null,null,null,null,null,null,null,null,null,null,null,null,null,null,null,null,null,null,null,null,null,null,null,null,null,null,""]
[null,null,null,null,null,null,null,null,null,null,null,null,null,null,null,null,null,null,null,null,null,null,null,null,null,null,null,null,null,null,null,null,null,null,null,null,null,null,null,null,""]
[null,null,null,null,null,null,null,null,null,null,null,null,null,null,null,null,null,null,null,null,null,null,null,null,null,null,null,null,null,null,null,null,null,null,null,null,null,null,null,null,""]
[null,null,null,null,null,null,null,null,null,null,null,null,null,null,null,null,null,null,null,null,null,null,null,null,null,null,null,null,null,null,null,null,null,null,null,null,null,null,null,null,""]
[null,null,null,null,null,null,null,null,null,null,null,null,null,null,null,null,null,null,null,null,null,null,null,null,null,null,null,null,null,null,null,null,null,null,null,null,null,null,null,null,""]
[null,null,null,null,null,null,null,null,null,null,null,null,null,null,null,null,null,null,null,null,null,null,null,null,null,null,null,null,null,null,null,null,null,null,null,null,null,null,null,null,""]
[null,null,null,null,null,null,null,null,null,null,null,null,null,null,null,null,null,null,null,null,null,null,null,null,null,null,null,null,null,null,null,null,null,null,null,null,null,null,null,null,""]
[null,null,null,null,null,null,null,null,null,null,null,null,null,null,null,null,null,null,null,null,null,null,null,null,null,null,null,null,null,null,null,null,null,null,null,null,null,null,null,null,""]
[null,null,null,null,null,null,null,null,null,null,null,null,null,null,null,null,null,null,null,null,null,null,null,null,null,null,null,null,null,null,null,null,null,null,null,null,null,null,null,null,""]
[null,null,null,null,null,null,null,null,null,null,null,null,null,null,null,null,null,null,null,null,null,null,null,null,null,null,null,null,null,null,null,null,null,null,null,null,null,null,null,null,""]
[null,null,null,null,null,null,null,null,null,null,null,null,null,null,null,null,null,null,null,null,null,null,null,null,null,null,null,null,null,null,null,null,null,null,null,null,null,null,null,null,""]
[null,null,null,null,null,null,null,null,null,null,null,null,null,null,null,null,null,null,null,null,null,null,null,null,null,null,null,null,null,null,null,null,null,null,null,null,null,null,null,null,""]
[null,null,null,null,null,null,null,null,null,null,null,null,null,null,null,null,null,null,null,null,null,null,null,null,null,null,null,null,null,null,null,null,null,null,null,null,null,null,null,null,""]
[null,null,null,null,null,null,null,null,null,null,null,null,null,null,null,null,null,null,null,null,null,null,null,null,null,null,null,null,null,null,null,null,null,null,null,null,null,null,null,null,""]
[null,null,null,null,null,null,null,null,null,null,null,null,null,null,null,null,null,null,null,null,null,null,null,null,null,null,null,null,null,null,null,null,null,null,null,null,null,null,null,null,""]
[null,null,null,null,null,null,null,null,null,null,null,null,null,null,null,null,null,null,null,null,null,null,null,null,null,null,null,null,null,null,null,null,null,null,null,null,null,null,null,null,""]
[null,null,null,null,null,null,null,null,null,null,null,null,null,null,null,null,null,null,null,null,null,null,null,null,null,null,null,null,null,null,null,null,null,null,null,null,null,null,null,null,""]
[null,null,null,null,null,null,null,null,null,null,null,null,null,null,null,null,null,null,null,null,null,null,null,null,null,null,null,null,null,null,null,null,null,null,null,null,null,null,null,null,""]
[null,null,null,null,null,null,null,null,null,null,null,null,null,null,null,null,null,null,null,null,null,null,null,null,null,null,null,null,null,null,null,null,null,null,null,null,null,null,null,null,""]
[null,null,null,null,null,null,null,null,null,null,null,null,null,null,null,null,null,null,null,null,null,null,null,null,null,null,null,null,null,null,null,null,null,null,null,null,null,null,null,null,""]
[null,null,null,null,null,null,null,null,null,null,null,null,null,null,null,null,null,null,null,null,null,null,null,null,null,null,null,null,null,null,null,null,null,null,null,null,null,null,null,null,""]
[null,null,null,null,null,null,null,null,null,null,null,null,null,null,null,null,null,null,null,null,null,null,null,null,null,null,null,null,null,null,null,null,null,null,null,null,null,null,null,null,""]
[null,null,null,null,null,null,null,null,null,null,null,null,null,null,null,null,null,null,null,null,null,null,null,null,null,null,null,null,null,null,null,null,null,null,null,null,null,null,null,null,""]
[null,null,null,null,null,null,null,null,null,null,null,null,null,null,null,null,null,null,null,null,null,null,null,null,null,null,null,null,null,null,null,null,null,null,null,null,null,null,null,null,""]
[null,null,null,null,null,null,null,null,null,null,null,null,null,null,null,null,null,null,null,null,null,null,null,null,null,null,null,null,null,null,null,null,null,null,null,null,null,null,null,null,""]
[null,null,null,null,null,null,null,null,null,null,null,null,null,null,null,null,null,null,null,null,null,null,null,null,null,null,null,null,null,null,null,null,null,null,null,null,null,null,null,null,""]
[null,null,null,null,null,null,null,null,null,null,null,null,null,null,null,null,null,null,null,null,null,null,null,null,null,null,null,null,null,null,null,null,null,null,null,null,null,null,null,null,""]
[null,null,null,null,null,null,null,null,null,null,null,null,null,null,null,null,null,null,null,null,null,null,null,null,null,null,null,null,null,null,null,null,null,null,null,null,null,null,null,null,""]
[null,null,null,null,null,null,null,null,null,null,null,null,null,null,null,null,null,null,null,null,null,null,null,null,null,null,null,null,null,null,null,null,null,null,null,null,null,null,null,null,""]
[null,null,null,null,null,null,null,null,null,null,null,null,null,null,null,null,null,null,null,null,null,null,null,null,null,null,null,null,null,null,null,null,null,null,null,null,null,null,null,null,""]
[null,null,null,null,null,null,null,null,null,null,null,null,null,null,null,null,null,null,null,null,null,null,null,null,null,null,null,null,null,null,null,null,null,null,null,null,null,null,null,null,""]
[null,null,null,null,null,null,null,null,null,null,null,null,null,null,null,null,null,null,null,null,null,null,null,null,null,null,null,null,null,null,null,null,null,null,null,null,null,null,null,null,""]
[null,null,null,null,null,null,null,null,null,null,null,null,null,null,null,null,null,null,null,null,null,null,null,null,null,null,null,null,null,null,null,null,null,null,null,null,null,null,null,null,""]
[null,null,null,null,null,null,null,null,null,null,null,null,null,null,null,null,null,null,null,null,null,null,null,null,null,null,null,null,null,null,null,null,null,null,null,null,null,null,null,null,""]
[null,null,null,null,null,null,null,null,null,null,null,null,null,null,null,null,null,null,null,null,null,null,null,null,null,null,null,null,null,null,null,null,null,null,null,null,null,null,null,null,""]
[null,null,null,null,null,null,null,null,null,null,null,null,null,null,null,null,null,null,null,null,null,null,null,null,null,null,null,null,null,null,null,null,null,null,null,null,null,null,null,null,""]
[null,null,null,null,null,null,null,null,null,null,null,null,null,null,null,null,null,null,null,null,null,null,null,null,null,null,null,null,null,null,null,null,null,null,null,null,null,null,null,null,""]
[null,null,null,null,null,null,null,null,null,null,null,null,null,null,null,null,null,null,null,null,null,null,null,null,null,null,null,null,null,null,null,null,null,null,null,null,null,null,null,null,""]
[null,null,null,null,null,null,null,null,null,null,null,null,null,null,null,null,null,null,null,null,null,null,null,null,null,null,null,null,null,null,null,null,null,null,null,null,null,null,null,null,""]
[null,null,null,null,null,null,null,null,null,null,null,null,null,null,null,null,null,null,null,null,null,null,null,null,null,null,null,null,null,null,null,null,null,null,null,null,null,null,null,null,""]
[null,null,null,null,null,null,null,null,null,null,null,null,null,null,null,null,null,null,null,null,null,null,null,null,null,null,null,null,null,null,null,null,null,null,null,null,null,null,null,null,""]
[null,null,null,null,null,null,null,null,null,null,null,null,null,null,null,null,null,null,null,null,null,null,null,null,null,null,null,null,null,null,null,null,null,null,null,null,null,null,null,null,""]
[null,null,null,null,null,null,null,null,null,null,null,null,null,null,null,null,null,null,null,null,null,null,null,null,null,null,null,null,null,null,null,null,null,null,null,null,null,null,null,null,""]
[null,null,null,null,null,null,null,null,null,null,null,null,null,null,null,null,null,null,null,null,null,null,null,null,null,null,null,null,null,null,null,null,null,null,null,null,null,null,null,null,""]
[null,null,null,null,null,null,null,null,null,null,null,null,null,null,null,null,null,null,null,null,null,null,null,null,null,null,null,null,null,null,null,null,null,null,null,null,null,null,null,null,""]
[null,null,null,null,null,null,null,null,null,null,null,null,null,null,null,null,null,null,null,null,null,null,null,null,null,null,null,null,null,null,null,null,null,null,null,null,null,null,null,null,""]
[null,null,null,null,null,null,null,null,null,null,null,null,null,null,null,null,null,null,null,null,null,null,null,null,null,null,null,null,null,null,null,null,null,null,null,null,null,null,null,null,""]
[null,null,null,null,null,null,null,null,null,null,null,null,null,null,null,null,null,null,null,null,null,null,null,null,null,null,null,null,null,null,null,null,null,null,null,null,null,null,null,null,""]
[null,null,null,null,null,null,null,null,null,null,null,null,null,null,null,null,null,null,null,null,null,null,null,null,null,null,null,null,null,null,null,null,null,null,null,null,null,null,null,null,""]
[null,null,null,null,null,null,null,null,null,null,null,null,null,null,null,null,null,null,null,null,null,null,null,null,null,null,null,null,null,null,null,null,null,null,null,null,null,null,null,null,""]
[null,null,null,null,null,null,null,null,null,null,null,null,null,null,null,null,null,null,null,null,null,null,null,null,null,null,null,null,null,null,null,null,null,null,null,null,null,null,null,null,""]
[null,null,null,null,null,null,null,null,null,null,null,null,null,null,null,null,null,null,null,null,null,null,null,null,null,null,null,null,null,null,null,null,null,null,null,null,null,null,null,null,""]
[null,null,null,null,null,null,null,null,null,null,null,null,null,null,null,null,null,null,null,null,null,null,null,null,null,null,null,null,null,null,null,null,null,null,null,null,null,null,null,null,""]
[null,null,null,null,null,null,null,null,null,null,null,null,null,null,null,null,null,null,null,null,null,null,null,null,null,null,null,null,null,null,null,null,null,null,null,null,null,null,null,null,""]
[null,null,null,null,null,null,null,null,null,null,null,null,null,null,null,null,null,null,null,null,null,null,null,null,null,null,null,null,null,null,null,null,null,null,null,null,null,null,null,null,""]
[null,null,null,null,null,null,null,null,null,null,null,null,null,null,null,null,null,null,null,null,null,null,null,null,null,null,null,null,null,null,null,null,null,null,null,null,null,null,null,null,""]
[null,null,null,null,null,null,null,null,null,null,null,null,null,null,null,null,null,null,null,null,null,null,null,null,null,null,null,null,null,null,null,null,null,null,null,null,null,null,null,null,""]
[null,null,null,null,null,null,null,null,null,null,null,null,null,null,null,null,null,null,null,null,null,null,null,null,null,null,null,null,null,null,null,null,null,null,null,null,null,null,null,null,""]
[null,null,null,null,null,null,null,null,null,null,null,null,null,null,null,null,null,null,null,null,null,null,null,null,null,null,null,null,null,null,null,null,null,null,null,null,null,null,null,null,""]

{"sheet":"A2F","index":6,"n_rows":120,"n_cols":51,"rows_kept":120,"cut":false,"hidden":false,"merged":[[29,2,33,2],[0,30,1,33],[2,3,2,27],[2,28,2,37],[3,3,3,7],[3,8,3,12],[3,13,3,17],[3,18,3,22],[3,23,3,27],[3,28,3,32],[3,33,3,37],[4,2,8,2],[9,2,13,2],[14,2,18,2],[19,2,23,2],[24,2,28,2]]}
[null,null,null,null,null,null,null,null,null,null,null,null,null,null,null,null,null,null,null,null,null,null,null,null,null,null,null,null,null,null,"パレット"]
[null,null,null,null,null,null,null,null,null,null,null,null,null,null,null,null,null,null,null,null,null,null,null,null,null,null,null,null,null,null,null,null,null,null,null,null,null,null,null,null,null,null,null,null,null,"[B-6](d-4)"]
["ツールバー",null,null,"碧照ノ樹海B2F",null,null,null,null,null,null,null,null,null,null,null,null,null,null,null,null,null,null,null,null,null,null,null,null,{"$f":"TITLE","v":"碧照ノ樹海B2F"},null,null,null,null,null,null,null,null,null,null,"アイコン",null,null,null,null,null,"図形"]
[null,null,null,1,null,null,null,null,2,null,null,null,null,3,null,null,null,null,4,null,null,null,null,5,null,null,null,null,6,null,null,null,null,7,null,null,null,null,null,"座標","アイコン","レイヤー","吹き出しの向き","テキスト",null,"座標","図形","レイヤー","色","X","Y"]
[null,null,"A",null,null,null,null,null,null,null,null,null,null,null,null,null,null,null,null,null,null,null,null,null,null,null,null,null,null,null,null,null,null,null,null,null,null,null,null,"[B-2](b-2)","宝箱","宝箱・採集ポイント","↖","命中のハンマー",null,"[B-5](d-1)","矢印","Ｆ．Ｏ．Ｅ","#FF0000",-6,0]
[null,null,null,null,null,null,null,null,null,null,null,null,null,null,null,null,null,null,null,null,null,null,null,null,null,null,null,null,null,null,null,null,null,null,null,null,null,null,null,"[B-4](b-2)","宝箱","宝箱・採集ポイント","↙","マカーナ",null,"[C-5](e-4)","四角形（塗）","Ｆ．Ｏ．Ｅ","rgba(255,0,0,0.5)",3,1]
[null,null,null,null,null,null,null,null,null,null,null,null,null,null,null,null,null,null,null,null,null,null,null,null,null,null,null,null,null,null,null,null,null,null,null,null,null,null,null,"[B-4](b-5)","扉",null,null,null,null,"[C-4](e-3)","四角形（塗）","Ｆ．Ｏ．Ｅ","rgba(255,0,0,0.5)",3,1]
[null,null,null,null,null,null,null,null,null,null,null,null,null,null,null,null,null,null,null,null,null,null,null,null,null,null,null,null,null,null,null,null,null,null,null,null,null,null,null,"[B-6](b-2)","ハサミ","宝箱・採集ポイント","↗","４回\n・丈夫な木片\n・チーク材",null,"[E-4](d-2)","四角形（塗）","Ｆ．Ｏ．Ｅ","rgba(255,0,0,0.5)",3,1]
[null,null,null,null,null,null,null,null,null,null,null,null,null,null,null,null,null,null,null,null,null,null,null,null,null,null,null,null,null,null,null,null,null,null,null,null,null,null,null,"[B-6](b-4)","F.O.E(下)","Ｆ．Ｏ．Ｅ","↗","<a>森の破壊者</a>",null,"[D-3](e-3)","四角形（塗）","Ｆ．Ｏ．Ｅ","rgba(255,0,0,0.5)",3,1]
[null,null,"B",null,null,null,null,null,null,null,null,null,null,null,null,null,null,null,null,null,null,null,null,null,null,null,null,null,null,null,null,null,null,null,null,null,null,null,null,"[B-2](c-5)","扉",null,null,null,null,"[B-6](d-4)","四角形（塗）","Ｆ．Ｏ．Ｅ","rgba(255,0,0,0.5)",1,2]
[null,null,null,null,null,null,null,null,null,"宝",null,null,null,null,null,null,null,null,null,"宝",null,null,"扉",null,null,null,null,null,null,"伐",null,"Fd",null,null,null,null,null,null,null,"[B-5](d-1)","F.O.E(左)","Ｆ．Ｏ．Ｅ","↘","<a>森の破壊者</a>"]
[null,null,null,null,null,null,null,null,null,null,null,null,"扉",null,null,null,null,null,null,null,null,null,null,null,null,null,null,null,null,null,null,null,null,null,null,null,null,null,null,"[B-6](d-3)","矢印(右)"]
[null,null,null,null,null,null,null,null,null,null,null,null,null,null,null,null,null,null,null,null,null,null,null,"Fl",null,null,null,null,null,null,"→",null,null,null,null,null,null,null,null,"[B-2](e-3)","下り階段"]
[null,null,null,null,null,null,null,null,null,null,"下",null,null,null,null,null,null,null,null,null,null,null,null,null,null,null,null,null,null,null,null,null,null,null,null,null,null,null,null,"[C-2](d-3)","F.O.E(下)","クエスト・ミッション","↖","ミッション「碧照ノ樹海を解放せよ！」で\n<a>血の裂断者</a>と戦闘\nＨＰを半分程度まで減らすと逃げ出す"]
[null,null,"C",null,null,null,null,null,null,null,null,null,null,null,null,null,null,null,null,null,null,null,null,null,null,null,null,null,null,null,null,null,null,null,null,null,null,null,null,"[C-3](c-1)","扉"]
[null,null,null,null,null,null,null,null,null,null,null,null,null,null,null,null,null,null,null,null,null,null,null,null,null,null,null,null,null,null,null,null,null,null,null,null,null,null,null,"[C-4](c-4)","F.O.E(下)","Ｆ．Ｏ．Ｅ","↗","<a>森の破壊者</a>"]
[null,null,null,null,null,null,null,null,null,null,null,null,null,"扉",null,null,null,null,null,null,null,"Fd",null,null,null,null,null,"Fd",null,null,null,null,null,null,null,null,null,null,null,"[C-5](c-5)","F.O.E(下)","Ｆ．Ｏ．Ｅ","↗"]
[null,null,null,null,null,null,null,null,null,null,"Fd",null,null,null,null,null,null,null,null,null,null,null,null,null,null,null,null,null,null,null,null,null,null,null,null,null,null,null,null,"[C-3](e-2)","ハサミ","宝箱・採集ポイント","↖","３回\n・丈夫な木片\n・チーク材"]
[null,null,null,null,null,null,null,null,null,null,null,null,null,null,"伐",null,null,"！",null,null,null,null,null,null,null,null,null,null,null,null,null,"扉",null,null,null,null,null,null,null,"[C-3](e-5)","感嘆符","イベント等","↖","・黄色の果実⇒ＨＰ－５\n・赤色の果実⇒全員ＴＰ＋１０\n・橙色の果実⇒ＴＰ－５"]
[null,null,"D",null,null,null,null,null,null,null,null,null,"扉",null,null,null,"扉",null,null,"扉",null,null,null,null,null,null,null,null,null,null,null,null,null,null,null,null,null,null,null,"[C-6](e-4)","扉"]
[null,null,null,null,null,null,null,null,null,null,null,null,null,null,null,null,null,null,null,"Ｅ",null,null,null,null,"扉",null,null,null,"←→",null,null,null,null,null,null,null,null,null,null,"[D-2](a-5)","扉"]
[null,null,null,null,null,null,null,null,null,null,"扉",null,null,null,null,null,null,"←→",null,"手",null,null,null,"！",null,null,null,null,null,null,null,null,null,null,null,null,null,null,null,"[D-3](a-4)","扉"]
[null,null,null,null,null,null,null,null,null,null,null,null,null,null,null,null,null,null,null,null,null,"？",null,null,null,null,null,null,null,null,null,"上",null,null,null,null,null,null,null,"[D-4](a-2)","扉"]
[null,null,null,null,null,null,null,null,null,null,null,null,null,"←→",null,null,null,null,null,null,null,null,null,null,null,null,"扉",null,null,null,null,null,null,null,null,null,null,null,null,"[D-4](b-2)","イベント"]
[null,null,"E",null,null,null,null,null,null,null,null,null,"宝",null,null,null,null,null,null,null,null,null,null,null,null,null,null,null,null,null,null,null,null,null,null,null,null,null,null,"[D-5](b-2)","扉"]
[null,null,null,null,null,null,null,null,null,null,null,null,null,null,null,null,"Fu",null,null,null,"Fd",null,null,null,null,null,null,null,null,null,null,null,null,null,null,null,null,null,null,"[D-6](b-1)","矢印(左右)"]
[null,null,null,null,null,null,null,null,null,null,null,null,null,null,null,null,null,null,null,null,null,null,null,null,null,null,null,null,null,null,null,null,null,null,null,null,null,null,null,"[D-2](c-3)","扉"]
[null,null,null,null,null,null,null,null,null,null,null,null,null,null,null,null,null,null,null,null,null,null,null,null,null,null,"！",null,null,null,null,null,null,null,null,null,null,null,null,"[D-3](c-5)","矢印(左右)"]
[null,null,null,null,null,null,null,null,null,null,null,null,null,null,null,null,null,null,null,null,null,null,null,null,null,null,null,null,null,null,null,null,null,null,null,null,null,null,null,"[D-4](c-2)","手","宝箱・採集ポイント","↗","４回\n・樹海アロエ\n・小さな花"]
[null,null,"F",null,null,null,null,null,null,null,null,null,null,null,null,null,null,null,null,null,null,null,null,null,null,null,null,null,null,null,null,null,null,null,null,null,null,null,null,"[D-5](c-1)","感嘆符","イベント等","↗","・メディカを渡す⇒熊の爪\n・アリアドネの糸を渡す⇒熊の爪\n・メディックが介護⇒熊の爪"]
[null,null,null,null,null,null,null,null,null,null,null,null,null,null,null,null,null,null,null,null,null,null,null,null,null,null,null,null,null,null,null,null,null,null,null,null,null,null,null,"[D-4](d-4)","疑問符","クエスト・ミッション","↗","クエスト『謎の穴の調査依頼』で\n<a>デスストーカー</a>と戦闘"]
[null,null,null,null,null,null,null,null,null,null,null,null,null,null,null,null,null,null,null,null,null,null,null,null,null,null,null,null,null,null,null,null,null,null,null,null,null,null,null,"[D-6](d-4)","上り階段"]
[null,null,null,null,null,null,null,null,null,null,null,null,null,null,null,null,null,null,null,null,null,null,null,null,null,null,null,null,null,null,null,null,null,null,null,null,null,null,null,"[D-3](e-1)","矢印(左右)"]
[null,null,null,null,null,null,null,null,null,null,null,null,null,null,null,null,null,null,null,null,null,null,null,null,null,null,null,null,null,null,null,null,null,null,null,null,null,null,null,"[D-5](e-4)","扉"]
[null,null,null,null,null,null,null,null,null,null,null,null,null,null,null,null,null,null,null,null,null,null,null,null,null,null,null,null,null,null,null,null,null,null,null,null,null,null,null,"[E-2](a-5)","宝箱","宝箱・採集ポイント","↖","腕封じのハンマー"]
[null,null,null,null,null,null,null,null,null,null,null,null,null,null,null,null,null,null,null,null,null,null,null,null,null,null,null,null,null,null,null,null,null,null,null,null,null,null,null,"[E-3](b-4)","F.O.E(上)","Ｆ．Ｏ．Ｅ","↖","<a>森の破壊者</a>"]
[null,null,null,null,null,null,null,null,null,null,null,null,null,null,null,null,null,null,null,null,null,null,null,null,null,null,null,null,null,null,null,null,null,null,null,null,null,null,null,"[E-4](b-3)","F.O.E(下)","Ｆ．Ｏ．Ｅ","↖"]
[null,null,null,null,null,null,null,null,null,null,null,null,null,null,null,null,null,null,null,null,null,null,null,null,null,null,null,null,null,null,null,null,null,null,null,null,null,null,null,"[E-5](d-4)","感嘆符"]
[null,null,null,null,null,null,null,null,null,null,null,null,null,null,null,null,null,null,null,null,null,null,null,null,null,null,null,null,null,null,null,null,null,null,null,null,null,null,null,"[C-4](c-4)","感嘆符","イベント等","↗","ＨＰ－３０，全員ＴＰ＋１０"]
[null,null,null,null,null,null,null,null,null,null,null,null,null,null,null,null,null,null,null,null,null,null,null,null,null,null,null,null,null,null,null,null,null,null,null,null,null,null,null,"[C-5](c-5)","感嘆符","イベント等","↗"]
[null,null,null,null,null,null,null,null,null,null,null,null,null,null,null,null,null,null,null,null,null,null,null,null,null,null,null,null,null,null,null,null,null,null,null,null,null,null,null,"[E-3](b-4)","感嘆符","イベント等","↖","ＨＰ－３０，全員ＴＰ＋１０"]
[null,null,null,null,null,null,null,null,null,null,null,null,null,null,null,null,null,null,null,null,null,null,null,null,null,null,null,null,null,null,null,null,null,null,null,null,null,null,null,"[E-4](b-3)","感嘆符","イベント等","↖"]
[]
[]
[]
[]
[null,null,null,null,null,null,null,null,null,null,null,null,null,null,null,null,null,null,null,null,null,null,null,null,null,null,null,null,null,null,null,null,null,null,null,null,null,null,null,null,""]
[null,null,null,null,null,null,null,null,null,null,null,null,null,null,null,null,null,null,null,null,null,null,null,null,null,null,null,null,null,null,null,null,null,null,null,null,null,null,null,null,""]
[null,null,null,null,null,null,null,null,null,null,null,null,null,null,null,null,null,null,null,null,null,null,null,null,null,null,null,null,null,null,null,null,null,null,null,null,null,null,null,null,""]
[null,null,null,null,null,null,null,null,null,null,null,null,null,null,null,null,null,null,null,null,null,null,null,null,null,null,null,null,null,null,null,null,null,null,null,null,null,null,null,null,""]
[null,null,null,null,null,null,null,null,null,null,null,null,null,null,null,null,null,null,null,null,null,null,null,null,null,null,null,null,null,null,null,null,null,null,null,null,null,null,null,null,""]
[null,null,null,null,null,null,null,null,null,null,null,null,null,null,null,null,null,null,null,null,null,null,null,null,null,null,null,null,null,null,null,null,null,null,null,null,null,null,null,null,""]
[null,null,null,null,null,null,null,null,null,null,null,null,null,null,null,null,null,null,null,null,null,null,null,null,null,null,null,null,null,null,null,null,null,null,null,null,null,null,null,null,""]
[null,null,null,null,null,null,null,null,null,null,null,null,null,null,null,null,null,null,null,null,null,null,null,null,null,null,null,null,null,null,null,null,null,null,null,null,null,null,null,null,""]
[null,null,null,null,null,null,null,null,null,null,null,null,null,null,null,null,null,null,null,null,null,null,null,null,null,null,null,null,null,null,null,null,null,null,null,null,null,null,null,null,""]
[null,null,null,null,null,null,null,null,null,null,null,null,null,null,null,null,null,null,null,null,null,null,null,null,null,null,null,null,null,null,null,null,null,null,null,null,null,null,null,null,""]
[null,null,null,null,null,null,null,null,null,null,null,null,null,null,null,null,null,null,null,null,null,null,null,null,null,null,null,null,null,null,null,null,null,null,null,null,null,null,null,null,""]
[null,null,null,null,null,null,null,null,null,null,null,null,null,null,null,null,null,null,null,null,null,null,null,null,null,null,null,null,null,null,null,null,null,null,null,null,null,null,null,null,""]
[null,null,null,null,null,null,null,null,null,null,null,null,null,null,null,null,null,null,null,null,null,null,null,null,null,null,null,null,null,null,null,null,null,null,null,null,null,null,null,null,""]
[null,null,null,null,null,null,null,null,null,null,null,null,null,null,null,null,null,null,null,null,null,null,null,null,null,null,null,null,null,null,null,null,null,null,null,null,null,null,null,null,""]
[null,null,null,null,null,null,null,null,null,null,null,null,null,null,null,null,null,null,null,null,null,null,null,null,null,null,null,null,null,null,null,null,null,null,null,null,null,null,null,null,""]
[null,null,null,null,null,null,null,null,null,null,null,null,null,null,null,null,null,null,null,null,null,null,null,null,null,null,null,null,null,null,null,null,null,null,null,null,null,null,null,null,""]
[null,null,null,null,null,null,null,null,null,null,null,null,null,null,null,null,null,null,null,null,null,null,null,null,null,null,null,null,null,null,null,null,null,null,null,null,null,null,null,null,""]
[null,null,null,null,null,null,null,null,null,null,null,null,null,null,null,null,null,null,null,null,null,null,null,null,null,null,null,null,null,null,null,null,null,null,null,null,null,null,null,null,""]
[null,null,null,null,null,null,null,null,null,null,null,null,null,null,null,null,null,null,null,null,null,null,null,null,null,null,null,null,null,null,null,null,null,null,null,null,null,null,null,null,""]
[null,null,null,null,null,null,null,null,null,null,null,null,null,null,null,null,null,null,null,null,null,null,null,null,null,null,null,null,null,null,null,null,null,null,null,null,null,null,null,null,""]
[null,null,null,null,null,null,null,null,null,null,null,null,null,null,null,null,null,null,null,null,null,null,null,null,null,null,null,null,null,null,null,null,null,null,null,null,null,null,null,null,""]
[null,null,null,null,null,null,null,null,null,null,null,null,null,null,null,null,null,null,null,null,null,null,null,null,null,null,null,null,null,null,null,null,null,null,null,null,null,null,null,null,""]
[null,null,null,null,null,null,null,null,null,null,null,null,null,null,null,null,null,null,null,null,null,null,null,null,null,null,null,null,null,null,null,null,null,null,null,null,null,null,null,null,""]
[null,null,null,null,null,null,null,null,null,null,null,null,null,null,null,null,null,null,null,null,null,null,null,null,null,null,null,null,null,null,null,null,null,null,null,null,null,null,null,null,""]
[null,null,null,null,null,null,null,null,null,null,null,null,null,null,null,null,null,null,null,null,null,null,null,null,null,null,null,null,null,null,null,null,null,null,null,null,null,null,null,null,""]
[null,null,null,null,null,null,null,null,null,null,null,null,null,null,null,null,null,null,null,null,null,null,null,null,null,null,null,null,null,null,null,null,null,null,null,null,null,null,null,null,""]
[null,null,null,null,null,null,null,null,null,null,null,null,null,null,null,null,null,null,null,null,null,null,null,null,null,null,null,null,null,null,null,null,null,null,null,null,null,null,null,null,""]
[null,null,null,null,null,null,null,null,null,null,null,null,null,null,null,null,null,null,null,null,null,null,null,null,null,null,null,null,null,null,null,null,null,null,null,null,null,null,null,null,""]
[null,null,null,null,null,null,null,null,null,null,null,null,null,null,null,null,null,null,null,null,null,null,null,null,null,null,null,null,null,null,null,null,null,null,null,null,null,null,null,null,""]
[null,null,null,null,null,null,null,null,null,null,null,null,null,null,null,null,null,null,null,null,null,null,null,null,null,null,null,null,null,null,null,null,null,null,null,null,null,null,null,null,""]
[null,null,null,null,null,null,null,null,null,null,null,null,null,null,null,null,null,null,null,null,null,null,null,null,null,null,null,null,null,null,null,null,null,null,null,null,null,null,null,null,""]
[null,null,null,null,null,null,null,null,null,null,null,null,null,null,null,null,null,null,null,null,null,null,null,null,null,null,null,null,null,null,null,null,null,null,null,null,null,null,null,null,""]
[null,null,null,null,null,null,null,null,null,null,null,null,null,null,null,null,null,null,null,null,null,null,null,null,null,null,null,null,null,null,null,null,null,null,null,null,null,null,null,null,""]
[null,null,null,null,null,null,null,null,null,null,null,null,null,null,null,null,null,null,null,null,null,null,null,null,null,null,null,null,null,null,null,null,null,null,null,null,null,null,null,null,""]
[null,null,null,null,null,null,null,null,null,null,null,null,null,null,null,null,null,null,null,null,null,null,null,null,null,null,null,null,null,null,null,null,null,null,null,null,null,null,null,null,""]
[null,null,null,null,null,null,null,null,null,null,null,null,null,null,null,null,null,null,null,null,null,null,null,null,null,null,null,null,null,null,null,null,null,null,null,null,null,null,null,null,""]
[null,null,null,null,null,null,null,null,null,null,null,null,null,null,null,null,null,null,null,null,null,null,null,null,null,null,null,null,null,null,null,null,null,null,null,null,null,null,null,null,""]
[null,null,null,null,null,null,null,null,null,null,null,null,null,null,null,null,null,null,null,null,null,null,null,null,null,null,null,null,null,null,null,null,null,null,null,null,null,null,null,null,""]
[null,null,null,null,null,null,null,null,null,null,null,null,null,null,null,null,null,null,null,null,null,null,null,null,null,null,null,null,null,null,null,null,null,null,null,null,null,null,null,null,""]
[null,null,null,null,null,null,null,null,null,null,null,null,null,null,null,null,null,null,null,null,null,null,null,null,null,null,null,null,null,null,null,null,null,null,null,null,null,null,null,null,""]
[null,null,null,null,null,null,null,null,null,null,null,null,null,null,null,null,null,null,null,null,null,null,null,null,null,null,null,null,null,null,null,null,null,null,null,null,null,null,null,null,""]
[null,null,null,null,null,null,null,null,null,null,null,null,null,null,null,null,null,null,null,null,null,null,null,null,null,null,null,null,null,null,null,null,null,null,null,null,null,null,null,null,""]
[null,null,null,null,null,null,null,null,null,null,null,null,null,null,null,null,null,null,null,null,null,null,null,null,null,null,null,null,null,null,null,null,null,null,null,null,null,null,null,null,""]
[null,null,null,null,null,null,null,null,null,null,null,null,null,null,null,null,null,null,null,null,null,null,null,null,null,null,null,null,null,null,null,null,null,null,null,null,null,null,null,null,""]
[null,null,null,null,null,null,null,null,null,null,null,null,null,null,null,null,null,null,null,null,null,null,null,null,null,null,null,null,null,null,null,null,null,null,null,null,null,null,null,null,""]
[null,null,null,null,null,null,null,null,null,null,null,null,null,null,null,null,null,null,null,null,null,null,null,null,null,null,null,null,null,null,null,null,null,null,null,null,null,null,null,null,""]
[null,null,null,null,null,null,null,null,null,null,null,null,null,null,null,null,null,null,null,null,null,null,null,null,null,null,null,null,null,null,null,null,null,null,null,null,null,null,null,null,""]
[null,null,null,null,null,null,null,null,null,null,null,null,null,null,null,null,null,null,null,null,null,null,null,null,null,null,null,null,null,null,null,null,null,null,null,null,null,null,null,null,""]
[null,null,null,null,null,null,null,null,null,null,null,null,null,null,null,null,null,null,null,null,null,null,null,null,null,null,null,null,null,null,null,null,null,null,null,null,null,null,null,null,""]
[null,null,null,null,null,null,null,null,null,null,null,null,null,null,null,null,null,null,null,null,null,null,null,null,null,null,null,null,null,null,null,null,null,null,null,null,null,null,null,null,""]
[null,null,null,null,null,null,null,null,null,null,null,null,null,null,null,null,null,null,null,null,null,null,null,null,null,null,null,null,null,null,null,null,null,null,null,null,null,null,null,null,""]
[null,null,null,null,null,null,null,null,null,null,null,null,null,null,null,null,null,null,null,null,null,null,null,null,null,null,null,null,null,null,null,null,null,null,null,null,null,null,null,null,""]
[null,null,null,null,null,null,null,null,null,null,null,null,null,null,null,null,null,null,null,null,null,null,null,null,null,null,null,null,null,null,null,null,null,null,null,null,null,null,null,null,""]
[null,null,null,null,null,null,null,null,null,null,null,null,null,null,null,null,null,null,null,null,null,null,null,null,null,null,null,null,null,null,null,null,null,null,null,null,null,null,null,null,""]
[null,null,null,null,null,null,null,null,null,null,null,null,null,null,null,null,null,null,null,null,null,null,null,null,null,null,null,null,null,null,null,null,null,null,null,null,null,null,null,null,""]
[null,null,null,null,null,null,null,null,null,null,null,null,null,null,null,null,null,null,null,null,null,null,null,null,null,null,null,null,null,null,null,null,null,null,null,null,null,null,null,null,""]
[null,null,null,null,null,null,null,null,null,null,null,null,null,null,null,null,null,null,null,null,null,null,null,null,null,null,null,null,null,null,null,null,null,null,null,null,null,null,null,null,""]
[null,null,null,null,null,null,null,null,null,null,null,null,null,null,null,null,null,null,null,null,null,null,null,null,null,null,null,null,null,null,null,null,null,null,null,null,null,null,null,null,""]
[null,null,null,null,null,null,null,null,null,null,null,null,null,null,null,null,null,null,null,null,null,null,null,null,null,null,null,null,null,null,null,null,null,null,null,null,null,null,null,null,""]
[null,null,null,null,null,null,null,null,null,null,null,null,null,null,null,null,null,null,null,null,null,null,null,null,null,null,null,null,null,null,null,null,null,null,null,null,null,null,null,null,""]
[null,null,null,null,null,null,null,null,null,null,null,null,null,null,null,null,null,null,null,null,null,null,null,null,null,null,null,null,null,null,null,null,null,null,null,null,null,null,null,null,""]
[null,null,null,null,null,null,null,null,null,null,null,null,null,null,null,null,null,null,null,null,null,null,null,null,null,null,null,null,null,null,null,null,null,null,null,null,null,null,null,null,""]
[null,null,null,null,null,null,null,null,null,null,null,null,null,null,null,null,null,null,null,null,null,null,null,null,null,null,null,null,null,null,null,null,null,null,null,null,null,null,null,null,""]
[null,null,null,null,null,null,null,null,null,null,null,null,null,null,null,null,null,null,null,null,null,null,null,null,null,null,null,null,null,null,null,null,null,null,null,null,null,null,null,null,""]
[null,null,null,null,null,null,null,null,null,null,null,null,null,null,null,null,null,null,null,null,null,null,null,null,null,null,null,null,null,null,null,null,null,null,null,null,null,null,null,null,""]
[null,null,null,null,null,null,null,null,null,null,null,null,null,null,null,null,null,null,null,null,null,null,null,null,null,null,null,null,null,null,null,null,null,null,null,null,null,null,null,null,""]
[null,null,null,null,null,null,null,null,null,null,null,null,null,null,null,null,null,null,null,null,null,null,null,null,null,null,null,null,null,null,null,null,null,null,null,null,null,null,null,null,""]
[null,null,null,null,null,null,null,null,null,null,null,null,null,null,null,null,null,null,null,null,null,null,null,null,null,null,null,null,null,null,null,null,null,null,null,null,null,null,null,null,""]
[null,null,null,null,null,null,null,null,null,null,null,null,null,null,null,null,null,null,null,null,null,null,null,null,null,null,null,null,null,null,null,null,null,null,null,null,null,null,null,null,""]
[null,null,null,null,null,null,null,null,null,null,null,null,null,null,null,null,null,null,null,null,null,null,null,null,null,null,null,null,null,null,null,null,null,null,null,null,null,null,null,null,""]
[null,null,null,null,null,null,null,null,null,null,null,null,null,null,null,null,null,null,null,null,null,null,null,null,null,null,null,null,null,null,null,null,null,null,null,null,null,null,null,null,""]
[null,null,null,null,null,null,null,null,null,null,null,null,null,null,null,null,null,null,null,null,null,null,null,null,null,null,null,null,null,null,null,null,null,null,null,null,null,null,null,null,""]
[null,null,null,null,null,null,null,null,null,null,null,null,null,null,null,null,null,null,null,null,null,null,null,null,null,null,null,null,null,null,null,null,null,null,null,null,null,null,null,null,""]
[null,null,null,null,null,null,null,null,null,null,null,null,null,null,null,null,null,null,null,null,null,null,null,null,null,null,null,null,null,null,null,null,null,null,null,null,null,null,null,null,""]